{"text_format":"1","workbook":"xlsx","n_sheets":12,"sheets":["AER CF","AER NRs","AER lookups","AER ETL","Instructions","Contents","Business & other details","3.1 Revenue","3.2 Operating expenditure","3.2.3 Provisions","3.3 Assets (RAB)","NSP Amendments"],"not_rendered":{"charts":0,"images":5,"macros":1,"external_links":2,"defined_names":590,"comments":1,"pivot_tables":0},"unopened":[],"bounds":{"document_bytes":16777216,"sheet_cells":100000,"rows_first":2000,"rows_last":500,"rows_between":2000,"halvings":0,"cell_chars":16384,"cell_head_chars":4096},"cells_cut":0,"cells_raw":0,"read":"whole","date_system":"1900"}

{"sheet":"AER CF","index":0,"n_rows":127,"n_cols":24,"rows_kept":127,"cut":false,"hidden":true,"merged":[[3,1,3,21]]}
[null,"AER CONDITIONAL FORMATTING"]
[]
[]
[null,"CONDITIONAL FORMATTING MAP"]
[null,null,null,null,null,"=INDEX(dms_CF_3.6.1, MATCH(dms_TradingName,dms_CF_TradingName))=\"Y\"","=INDEX(dms_CF_3.6.5, MATCH(dms_TradingName,dms_CF_TradingName))=\"Y\"","=INDEX(dms_CF_3.6.6, MATCH(dms_TradingName,dms_CF_TradingName))=\"Y\"","=INDEX(dms_CF_3.6.7.1, MATCH(dms_TradingName,dms_CF_TradingName))=\"Y\"","=INDEX(dms_CF_3.6.7.2, MATCH(dms_TradingName,dms_CF_TradingName))=\"Y\"","=INDEX(dms_CF_3.6.7.3, MATCH(dms_TradingName,dms_CF_TradingName))=\"Y\"","=INDEX(dms_CF_3.6.7.4, MATCH(dms_TradingName,dms_CF_TradingName))=\"Y\"","=INDEX(dms_CF_3.6.8, MATCH(dms_TradingName,dms_CF_TradingName))=\"Y\"","=INDEX(dms_CF_4.1, MATCH(dms_TradingName,dms_CF_TradingName))=\"Y\"","=INDEX(dms_CF_6.6.1, MATCH(dms_TradingName,dms_CF_TradingName))=\"Y\"","=INDEX(dms_CF_6.8, MATCH(dms_TradingName,dms_CF_TradingName))=\"Y\"","=INDEX(dms_CF_7.12, MATCH(dms_TradingName,dms_CF_TradingName))=\"Y\"","=INDEX(dms_CF_8.1_A, MATCH(dms_TradingName,dms_CF_TradingName))=\"Y\"","=INDEX(dms_CF_8.1_B, MATCH(dms_TradingName,dms_CF_TradingName))=\"Y\"","=INDEX(dms_CF_8.1_Neg, MATCH(dms_TradingName,dms_CF_TradingName))=\"Y\"","=INDEX(dms_CF_4.4.1_Neg, MATCH(dms_TradingName,dms_CF_TradingName))=\"Y\""]
[null,"dms_CF_TradingName","JurisdictionList","Sector","Segment","dms_CF_3.6.1","dms_CF_3.6.5","dms_CF_3.6.6","dms_CF_3.6.7.1","dms_CF_3.6.7.2","dms_CF_3.6.7.3","dms_CF_3.6.7.4","dms_CF_3.6.8","dms_CF_4.1","dms_CF_6.6.1","dms_CF_6.8","dms_CF_7.12","dms_CF_8.1_A","dms_CF_8.1_B","dms_CF_8.1_Neg","dms_CF_4.4.1","dms_CF_MAIFI_flag","Spare1","Spare2"]
[null,"ActewAGL Distribution","ACT","Electricity","Distribution",null,"Y",null,"Y","Y","N","Y","N","Y","N","Y","Y","N","Y","Y","N","N","N","N"]
[null,"Ausgrid","NSW","Electricity","Distribution",null,"Y",null,"N","N","N","Y","N","Y","N","Y","Y","N","Y","Y","N","N","N","N"]
[null,"AusNet (D)","Vic","Electricity","Distribution",null,"N",null,"N","N","N","N","N","Y","N","Y","N","N","N","Y","N","N","N","N"]
[null,"AusNet (T)","Vic","Electricity","Transmission",null,"N",null,"N","N","N","N","N","Y","N","Y","N","N","N","Y","N","N","N","N"]
[null,"CitiPower","Vic","Electricity","Distribution",null,"N",null,"N","N","N","N","N","Y","N","Y","N","N","N","Y","N","N","N","N"]
[null,"Directlink","Qld","Electricity","Transmission",null,"N",null,"N","N","N","N","N","Y","N","Y","N","N","Y","Y","N","N","N","N"]
[null,"ElectraNet","SA","Electricity","Transmission",null,"N",null,"N","N","N","N","N","Y","N","Y","N","N","Y","Y","N","N","N","N"]
[null,"Endeavour Energy","NSW","Electricity","Distribution",null,"Y",null,"N","N","N","Y","N","Y","N","Y","Y","N","Y","Y","Y","N","N","N"]
[null,"Energex","Qld","Electricity","Distribution",null,"Y",null,"N","N","N","N","N","Y","N","Y","Y","N","Y","Y","Y","N","N","N"]
[null,"Ergon Energy","Qld","Electricity","Distribution",null,"Y",null,"N","N","N","N","N","Y","N","Y","Y","N","Y","Y","N","N","N","N"]
[null,"Essential Energy","NSW","Electricity","Distribution",null,"Y",null,"N","N","N","Y","N","Y","N","Y","Y","N","Y","Y","N","N","N","N"]
[null,"Jemena Electricity","Vic","Electricity","Distribution",null,"N",null,"N","N","N","N","N","Y","N","Y","N","N","N","Y","N","N","N","N"]
[null,"Murraylink","SA","Electricity","Transmission",null,"N",null,"N","N","N","N","N","Y","N","Y","N","N","Y","Y","N","N","N","N"]
[null,"Power and Water","NT","Electricity","Distribution",null,"N",null,"N","Y","N","N","Y","Y","Y","Y","Y","N","Y","Y","N","N","N","N"]
[null,"Powercor Australia","Vic","Electricity","Distribution",null,"N",null,"N","N","N","N","N","Y","N","Y","N","N","N","Y","N","N","N","N"]
[null,"Powerlink","Qld","Electricity","Transmission",null,"N",null,"N","N","N","N","N","Y","N","Y","N","N","Y","Y","N","N","N","N"]
[null,"SA Power Networks","SA","Electricity","Distribution",null,"Y",null,"N","N","N","N","N","Y","N","Y","Y","Y","Y","N","N","N","N","N"]
[null,"TasNetworks (D)","Tas","Electricity","Distribution",null,"Y",null,"N","N","N","N","N","Y","N","Y","Y","N","Y","Y","N","N","N","N"]
[null,"TasNetworks (T)","Tas","Electricity","Transmission",null,"N",null,"N","N","N","N","N","Y","N","Y","N","N","Y","Y","N","N","N","N"]
[null,"TransGrid","NSW","Electricity","Transmission",null,"N",null,"N","N","N","N","N","Y","N","Y","N","N","Y","Y","N","N","N","N"]
[null,"United Energy","Vic","Electricity","Distribution",null,"N",null,"N","N","N","N","N","Y","N","Y","N","N","N","Y","N","N","N","N"]
[]
[]
[null,"Confidential"]
[null,"Amended"]
[]
[null,"Worksheet 6.2 STPIS reliability"]
[null,"Formula",null,null,null,"Applied to:"]
[]
[null,"=INDEX(dms_CBD_flag,MATCH(dms_TradingName,dms_TradingName_List))=\"NO\"",null,null,null,"$D$11,$D$17,$D$23,$D$33,$D$39,$D$45,$D$55,$D$61,$D$67,$D$77,$D$83,$D$89"]
[null,"=INDEX(dms_Urban_flag,MATCH(dms_TradingName,dms_TradingName_List))=\"NO\"",null,null,null,"$D$12,$D$18,$D$24,$D$56,$D$62,$D$78,$D$68,$D$84"]
[null,"=INDEX(dms_ShortRural_flag,MATCH(dms_TradingName,dms_TradingName_List))=\"NO\"",null,null,null,"$D$13,$D$19,$D$25,$D$57,$D$63,$D$69,$D$79,$D$85"]
[null,"=INDEX(dms_LongRural_flag,MATCH(dms_TradingName,dms_TradingName_List))=\"NO\"",null,null,null,"$D$14,$D$20,$D$26,$D$58,$D$64,$D$65,$D$70,$D$71,$D$80,$D$86"]
[null,"=INDEX(dms_FeederType_5_flag,MATCH(dms_TradingName,dms_TradingName_List))=\"NO\"",null,null,null,"$D$87,$D$81,$D$71,$D$65,$D$59,$D$49,$D$43,$D$37,$D$21,$D$15"]
[null,"=dms_MAIFI_Flag=\"No\"",null,null,null,"$D$55:$D$72"]
[]
[]
[null,"Business & other details"]
[null,"=(INDEX(dms_Model_Span,MATCH(dms_Model,dms_Model_List))>1)"]
[null,"=(INDEX(dms_Model_Span,MATCH(dms_Model,dms_Model_List))=1)"]
[]
[]
[null,"STYLES IN USE"]
[null,null,"dms_1"]
[null,null,"dms_2"]
[null,null,"dms_3"]
[null,null,"dms_4"]
[null,null,"dms_5"]
[null,null,"dms_NUM"]
[null,null,"dms_NUM%"]
[null,null,"dms_Row_Locked"]
[null,null,"dms_Row1"]
[null,null,"dms_Row2"]
[null,null,"dms_T1"]
[null,null,"dms_T2"]
[null,null,"dms_BH"]
[null,null,"dms_BY1"]
[null,null,"dms_BY2"]
[null,null,"dms_GH"]
[null,null,"dms_GY1"]
[null,null,"dms_GY2"]
[]
[]
[]
[]
[]
[]
[]
[]
[]
[]
[]
[]
[]
[]
[]
[]
[]
[]
[]
[]
[]
[]
[]
[]
[]
[]
[]
[]
[]
[]
[]
[]
[]
[]
[]
[]
[]
[]
[]
[]
[]
[]
[]
[]
[]
[]
[]
[]
[]
[]
[]
[]
[]
[]
[]
[]
[]
[]
[null,null,"0"]
[null,null,{"$f":"IFERROR(IF(dms_Model=\"ARR\",(MAX(0,dms_0608_LastRow-dms_0608_OffsetRows)),\"not an ARR\"),\"0\")","v":"not an ARR"}]

{"sheet":"AER NRs","index":1,"n_rows":226,"n_cols":15,"rows_kept":226,"cut":false,"hidden":true,"merged":[[197,1,198,1],[206,1,211,1],[150,1,156,1],[158,1,172,1],[174,1,175,1],[177,1,182,1],[189,1,190,1],[193,1,194,1],[133,1,148,1],[4,1,26,1],[30,1,53,1],[30,11,30,12],[31,11,33,11],[34,11,38,11],[42,11,43,11],[63,1,76,1],[82,1,95,1],[98,1,105,1],[108,1,113,1],[116,1,130,1]]}
[null,"AER NAMED RANGES"]
[]
[null,"DROP DOWN SELECTORS USED IN WORKBOOKS"]
[]
[null,"COVER SHEET","dms_DataQuality_List","dms_Confid_status_List"]
[null,null,"-- select --","-- select --"]
[null,null,"Actual","Public"]
[null,null,"Estimate","Confidential"]
[null,null,"Consolidated"]
[]
[]
[null,null,"For all files either AER or business needs to be able to specify the type of submission","For PTRM & RFM templates we must provide a choice in case they change their form of control - otherwise it is drawn from the business specific lookup table above."]
[null,null,"dms_SourceList","dms_FormControl_Choices"]
[null,null,"-- select --","Revenue cap"]
[null,null,"After appeal","Revenue yield"]
[null,null,"Draft decision","Weighted average price cap"]
[null,null,"Final decision"]
[null,null,"PTRM update 1"]
[null,null,"PTRM update 2"]
[null,null,"PTRM update 3"]
[null,null,"PTRM update 4"]
[null,null,"PTRM update 5"]
[null,null,"PTRM update 6"]
[null,null,"PTRM update 7"]
[null,null,"Regulatory proposal"]
[null,null,"Reporting"]
[null,null,"Revised regulatory proposal"]
[]
[]
[null,null,null,null,null,null,null,null,null,null,null,"This is used to create an image to insert on 6.3 STPIS sheet - not for dropdown lists."]
[null,"CA & RESET RINS \nDNSP","dms_DNSP_020301_SubstationType","dms_DNSP_020301_ProjectType","dms_DNSP_020301_ProjectTrigger","dms_DNSP_020302_ProjectType","dms_DNSP_020302_ProjectTrigger","dms_STPIS_Exclusion_List","dms_Reason_Interruption","dms_Reason_Interruption_Detailed",null,"Reason for interruption"]
[null,null,"Subtransmission substation","New substation establishment","Demand growth","New line on new route - single circuit","Demand growth","Weather","Animal","Animal impact",null,"Animal","Animal impact"]
[null,null,"Zone substation","Substation upgrade - capacity"," Voltage issues","New line on new route - dual circuit"," Voltage issues","Equipment failure","Asset failure","Animal nesting/burrowing, etc and other",null,null,"Animal nesting/burrowing, etc and other"]
[null,null,"Switching station","Substation upgrade - voltage"," Reactive power issue","New line on new route - other"," Reactive power issue","Operational error","Other","Other",null,null,"Other"]
[null,null,"Other","Other"," Fault level issues","Line rebuild over existing route - single circuit"," Fault level issues","Vegetation","Overloads","LV",null,"Asset failure","LV"]
[null,null,null,null," Safety","Line rebuild over existing route - dual circuit"," Net market benefit","Animals","Planned","Distribution substation",null,null,"Distribution substation"]
[null,null,null,null," Environment","Reconductor - Single circuit"," Safety","Third party impacts","Network business","HV",null,null,"HV"]
[null,null,null,null," Other","Reconductor - Dual circuit"," Environment","Transmission failure","Third party","Zone substation",null,null,"Zone substation"]
[null,null,null,null,null,"Reconductor - Other"," Other","Load shedding","Unknown","Subtransmission",null,null,"Subtransmission"]
[null,null,null,null,null,"Line upgrade - raising/retensoring",null,"Inter-distributor connection failure","Vegetation","insert description of 'other'",null,"Other","insert description of 'other'"]
[null,null,null,null,null,"Line upgrade - voltage upgrade",null,"Other","Weather","Network error",null,"Overloads"]
[null,null,null,null,null,"Line upgrade - capacity",null,null,"2 - STPIS Exclusion (3.3)(a)","Switching and protection error",null,"Planned"]
[null,null,null,null,null,"String spare circuit",null,null,"3 - STPIS Exclusion (3.3)(a)","Fire",null,"Network business","Network error"]
[null,null,null,null,null,"Other",null,null,"4 - STPIS Exclusion (3.3)(a)","Other",null,null,"Switching and protection error"]
[null,null,null,null,null,null,null,null,"5 - STPIS Exclusion (3.3)(a)","Dig-in",null,"Third party","Fire"]
[null,null,null,null,null,null,null,null,"6 - STPIS Exclusion (3.3)(a)","Unauthorised access",null,null,"Other"]
[null,null,null,null,null,null,null,null,"7 - STPIS Exclusion (3.3)(a)","Vehicle impact",null,null,"Dig-in"]
[null,null,null,null,null,null,null,null,null,"Unknown",null,null,"Unauthorised access"]
[null,null,null,null,null,null,null,null,null,"Blow-in/Fall-in - NSP responsibility",null,null,"Vehicle impact"]
[null,null,null,null,null,null,null,null,null,"Grow-in - NSP responsibility",null,"Unknown","Unknown"]
[null,null,null,null,null,null,null,null,null,"Blow-in/Fall-in - Other responsible party",null,"Vegetation","Blow-in/Fall-in - NSP responsibility"]
[null,null,null,null,null,null,null,null,null,"Grow-in - Other responsible party",null,null,"Grow-in - NSP responsibility"]
[null,null,null,null,null,null,null,null,null,null,null,null,"Blow-in/Fall-in - Other responsible party"]
[null,null,null,null,null,null,null,null,null,null,null,null,"Grow-in - Other responsible party"]
[null,null,null,null,null,null,null,null,null,null,null,"Weather"]
[null,null,null,null,null,null,null,null,null,null,null,"2 - STPIS Exclusion (3.3)(a)"]
[null,null,null,null,null,null,null,null,null,null,null,"3 - STPIS Exclusion (3.3)(a)"]
[null,null,null,null,null,null,null,null,null,null,null,"4 - STPIS Exclusion (3.3)(a)"]
[null,null,null,null,null,null,null,null,null,null,null,"5 - STPIS Exclusion (3.3)(a)"]
[null,null,null,null,null,null,null,null,null,null,null,"6 - STPIS Exclusion (3.3)(a)"]
[null,null,null,null,null,null,null,null,null,null,null,"7 - STPIS Exclusion (3.3)(a)"]
[]
[]
[null,"CA & RESET RINS \nTNSP ","dms_TNSP_0203_SubstationType","dms_TNSP_020301_ProjectType","dms_TNSP_020301_ProjectTrigger","dms_TNSP_020302_ProjectType","dms_TNSP_0203_ProjectTrigger"]
[null,null,"Terminal station","New substation establishment","Demand growth","New line on new route - single circuit","Demand growth"]
[null,null,"Switching station","Capacity upgrade"," Voltage issues","New line on new route - dual circuit"," Voltage issues"]
[null,null,"Transmission substation","Voltage upgrade"," Reactive power issue","New line on new route - other"," Reactive power issue"]
[null,null,"Other","Other"," Fault level issues","Line rebuild over existing route - single circuit"," Fault level issues"]
[null,null,null,null,"Net market benefit","Line rebuild over existing route - dual circuit"," Net market benefit"]
[null,null,null,null," Safety","Reconductor - Single circuit"," Safety"]
[null,null,null,null," Environment","Reconductor - Dual circuit"," Environment"]
[null,null,null,null," Other","Reconductor - Other"," Other"]
[null,null,null,null,null,"Line upgrade - raising/retensoring"]
[null,null,null,null,null,"Line upgrade - voltage upgrade"]
[null,null,null,null,null,"Line upgrade - capacity"]
[null,null,null,null,null,"String spare circuit"]
[null,null,null,null,null,"Other"]
[]
[]
[]
[null,"NAMED RANGES USED IN ETL PROCESS"]
[]
[null,"CA & RESET RINS \nDNSP ONLY","dms_020303_01_UOM","dms_020501_01_UOM","dms_020501_02_UOM","dms_020501_03_UOM","dms_020501_04_UOM","dms_020701_01_UOM","dms_020701_02_UOM","dms_020701_01_Rows","dms_040102_01_UOM","dms_040102_04_UOM"]
[null,null,"Circuit line length in km","0's","0's","0's","0's","km","km","Route line length within zone","0's","days"]
[null,null,"Circuit line length in km","0's","0's","0's","0's","0's","0's","Number of maintenance spans","0's","0's"]
[null,null,"Circuit line length in km","MVA added","MVA added","MVA added","MVA added","km","km","Total length of maintenance spans","0's","$0s"]
[null,null,"Circuit line length in km","0's","0's","0's","0's","km","km","Length of vegetation corridors","$0s","0's"]
[null,null,"Number","total spend $0s","total spend $0s","total spend $0s","total spend $0s","0's","0's","Average number of trees per maintenance span"]
[null,null,"Number","net circuit km added","net circuit km added","net circuit km added","net circuit km added","years","years","Average frequency of cutting cycle"]
[null,null,"Number","total spend $0s","total spend $0s","total spend $0s","total spend $0s"]
[null,null,null,"net circuit km added","net circuit km added","net circuit km added","net circuit km added"]
[null,null,null,"total spend $0s","total spend $0s","total spend $0s","total spend $0s"]
[null,null,null,"0's",null,"$0s"]
[null,null,null,"0's"]
[null,null,null,"0's"]
[null,null,null,"$0s"]
[]
[]
[null,"CA & RESET RINS \nTNSP ONLY","dms_020701_01_UOM"]
[null,null,"km"]
[null,null,"0's"]
[null,null,"km"]
[null,null,"0's"]
[null,null,"km"]
[null,null,"metres"]
[null,null,"years"]
[]
[]
[null,"CA & RESET RINS \nDNSP & TNSP","dms_020603_01_UOM"]
[null,null,"0's"]
[null,null,"0's"]
[null,null,"0's"]
[null,null,"0's"]
[null,null,"(per cent)"]
[]
[]
[null,"EB & RESET RINS \nDNSP ONLY","dms_030601_01_UOM","dms_030601_02_UOM","dms_030701_01_UOM","dms_030702_01_UOM","dms_030703_01_UOM"]
[null,null,"minutes/customer","minutes/customer","Customer / km","%","km"]
[null,null,"minutes/customer","minutes/customer","MWh/customer","Number of spans"]
[null,null,"interruptions/customer","interruptions/customer","kVA / customer","Number of spans"]
[null,null,"interruptions/customer","interruptions/customer",null,"Number of spans"]
[null,null,null,null,null,"Number of spans"]
[null,null,null,null,null,"Years"]
[null,null,null,null,null,"Years"]
[null,null,null,null,null,"Trees"]
[null,null,null,null,null,"Trees"]
[null,null,null,null,null,"Defects"]
[null,null,null,null,null,"Defects"]
[null,null,null,null,null,"Spans"]
[null,null,null,null,null,"km"]
[null,null,null,null,null,"Spans"]
[]
[null,null,"WHEN INSERTING COVER SHEET INTO A TNSP FILE - APPLY THESE NAMED RANGES"]
[null,"EB & RESET RINS \nTNSP ONLY","dms_030601_01_UOM",null,"dms_030701_01_UOM","dms_030702_01_UOM"]
[null,null,"%",null,"Number of spans","km"]
[null,null,"number",null,"Years","%"]
[null,null,"number",null,"Trees","km"]
[null,null,"%",null,"Defects","number"]
[null,null,"number",null,"Number of spans"]
[null,null,"number",null,"km"]
[null,null,"%",null,"km"]
[null,null,"number",null,"Number of spans"]
[null,null,"number"]
[null,null,"%"]
[null,null,"number"]
[null,null,"%"]
[null,null,"number"]
[null,null,"%"]
[null,null,"number"]
[]
[null,"EB & RESET RINS \nDNSP & TNSP","dms_EB_RAB_PIT"]
[null,null,"Beginning of year"]
[null,null,"End of year"]
[null,null,"End of year"]
[null,null,"End of year"]
[null,null,"End of year"]
[null,null,"End of year"]
[]
[null,"ARR \nDNSP ONLY","dms_030605_UOM","dms_03060703_UOM","Spare","Spare"]
[null,null,"number","number"]
[null,null,"number","number"]
[null,null,"number","number"]
[null,null,"number","number"]
[null,null,"number","(per cent)"]
[null,null,"number"]
[null,null,"number"]
[null,null,"number"]
[null,null,"number"]
[null,null,"number"]
[null,null,"number"]
[null,null,"number"]
[null,null,"(per cent)"]
[null,null,"(per cent)",""]
[]
[null,"RFM","dms_Beg","dms_Mid","dms_End"]
[null,null,"Beginning of year","Mid year","End of Year"]
[]
[null,"PTRM","dms_PTRM_RAB_PIT","dms_PTRM_TAB_PIT","DMS_Xfactor"]
[null,null,"Beginning of year","Beginning of year","x factors"]
[null,null,"End of year","End of year"]
[null,null,"End of year","End of year"]
[null,null,"End of year","End of year"]
[null,null,"End of year"]
[]
[]
[null,"STPIS & MIC NAMED RANGES "]
[]
[null,"These \"row descriptions\" are the column headings in the various templates but become row descriptions in the ETL process"]
[]
[null,"Table 6.3 sustained interruptions - row descriptions","dms_060301_CustNo_Affected_Row","dms_060301_Avg_Duration_Sustained_Int_Row","dms_060301_Effect_unplanned_SAIDI_Row","dms_060301_Effect_unplanned_SAIFI_Row"]
[null,null,"Number of customers affected by the interruption","Average duration of sustained customer interruption","Effect on unplanned SAIDI","Effect on unplanned SAIFI"]
[]
[]
[null,"Table 6.1 telephone answering - row descriptions and start date","dms_060101_Rows","dms_060102_Rows","dms_060101_StartDateTxt"]
[null,null,"Total number of calls \n(after removing excluded events)","Number of calls answered within 30 seconds \n(after excluding excluded events) ",{"$f":"dms_060701_StartDateTxt","v":"1-Jan-2006"}]
[]
[]
[null,"Table 6.8.1 - row descriptions","dms_060801_01_Rows","dms_060801_02_Rows","dms_060801_03_Rows","dms_060801_04_Rows"]
[null,null,"Number of interruptions","Duration of interruptions","Total unplanned minutes off supply","Effect on unplanned MAIFI"]
[]
[]
[null,"Table 7.9.4 - market impact component - row descriptions","dms_070904_01_Rows","without exclusions","with exclusions"]
[]
[]
[null,"These headings (Lists) are determined from the INDEX/MATCH function on the NSP selected on the Business & other details sheet"]
[]
[null,"Table 6.7.1 - daily performance data - unplanned - MAIFI  -- row descriptions and header named range values","dms_060701_Feeder_Header_Lvl4",{"$f":"INDEX(dms_FeederName_1,MATCH(dms_TradingName,dms_TradingName_List))","v":"CBD"},{"$f":"INDEX(dms_FeederName_1,MATCH(dms_TradingName,dms_TradingName_List))","v":"CBD"},{"$f":"INDEX(dms_FeederName_2,MATCH(dms_TradingName,dms_TradingName_List))","v":"Urban"},{"$f":"INDEX(dms_FeederName_2,MATCH(dms_TradingName,dms_TradingName_List))","v":"Urban"},{"$f":"INDEX(dms_FeederName_3,MATCH(dms_TradingName,dms_TradingName_List))","v":"Short rural"},{"$f":"INDEX(dms_FeederName_3,MATCH(dms_TradingName,dms_TradingName_List))","v":"Short rural"},{"$f":"INDEX(dms_FeederName_4,MATCH(dms_TradingName,dms_TradingName_List))","v":"Long rural"},{"$f":"INDEX(dms_FeederName_4,MATCH(dms_TradingName,dms_TradingName_List))","v":"Long rural"},{"$f":"IF((INDEX(dms_FeederName_5,MATCH(dms_TradingName,dms_TradingName_List))=0),\"Network\",(INDEX(dms_FeederName_5,MATCH(dms_TradingName,dms_TradingName_List))))","v":"Network"},{"$f":"IF((INDEX(dms_FeederName_5,MATCH(dms_TradingName,dms_TradingName_List))=0),\"Network\",(INDEX(dms_FeederName_5,MATCH(dms_TradingName,dms_TradingName_List))))","v":"Network"},"Network","Network"]
[]
[null,null,"dms_060701_Rows","All events","After removing excluded events","All events","After removing excluded events","All events","After removing excluded events","All events","After removing excluded events","All events","After removing excluded events","All events","After removing excluded events"]
[null,null,null,"the number of column headings changes from 10 to 12 depending on the number of feeder categories for the NSP"]
[]
[null,null,"dms_0603_FeederList",{"$f":"INDEX(dms_FeederName_1,MATCH(dms_TradingName,dms_TradingName_List))","v":"CBD"},{"$f":"INDEX(dms_FeederName_2,MATCH(dms_TradingName,dms_TradingName_List))","v":"Urban"},{"$f":"INDEX(dms_FeederName_3,MATCH(dms_TradingName,dms_TradingName_List))","v":"Short rural"},{"$f":"INDEX(dms_FeederName_4,MATCH(dms_TradingName,dms_TradingName_List))","v":"Long rural"}]
[]
[]
[null,"Use these to add to specific worksheets in existing files","Use these to add to specific worksheets in existing files"]
[]
[]
[null,"ARRs 6.7 STPIS daily performance","dms_060101_Values","dms_060102_Values","dms_060701_Values"]
[null,null,"dms_LeapYear"]
[]
[]
[null,"ARR's  6.8 STPIS exclusions","dms_060801_Event_Date","dms_060801_OutageID","dms_060801_FeederID","dms_060801_FeederClass","dms_060801_CauseID","dms_060801_01_Values","dms_060801_02_Values","dms_060801_03_Values","dms_060801_Excl_Cat","dms_060801_04_Values"]
[null,null,"dms_060801_StartCell"]
[]
[]
[null,"CA 6.3 sustained interruptions","dms_060301_Event_Date","dms_060301_Event_Time","dms_060301_AssetID","dms_060301_FeederClass","dms_060301_Reason","dms_060301_DetailedReason","dms_060301_CustNo_Affected_Values","dms_060301_Avg_Duration_Sustained_Int_Values","dms_060301_Effect_unplanned_SAIDI_Values","dms_060301_Effect_unplanned_SAIFI_Values","dms_060301_MED"]

{"sheet":"AER lookups","index":2,"n_rows":123,"n_cols":41,"rows_kept":123,"cut":false,"hidden":true,"merged":[[6,27,6,38],[8,27,8,30],[8,33,8,37],[57,1,57,4]]}
[null,"AER LOOKUP TABLES"]
[]
[null,"Data in these columns used for data validation and database purposes."]
[null,"Date last modified:","2017-01-16","added (Albury and Victora) for AGN"]
[null,null,"2016-10-17","updated TransGrid's correct legal name, corrected TasNetworks (T) to June financial year"]
[null,null,"2017-02-01","inserted Power and Water, added NRs (dms_FeederCat_1 and dms_FeederCat_2)"]
[null,null,"2017-03-03","inserted AEMO as a business",null,null,null,null,null,null,null,null,null,null,null,null,null,null,null,null,null,null,null,null,null,null,null,"FOR ELECTRICITY BUSINESSES ONLY"]
[null,null,"2018-03-28","major changes to accommodate STPIS"]
[null,null,"Template Version",5,null,null,null,null,null,null,null,null,null,null,null,null,null,null,null,null,null,null,null,null,null,null,null,"Feeder Types",null,null,null,"TasNetworks (D)","MAIFI flag","Feeder Names"]
[]
[null,null,null,null,null,null,null,null,null,null,null,null,null,null,null,null,null,null,null,null,null,null,null,null,null,null,null,"CBD","Urban","Short rural","long rural","EXTRA"]
[null,"dms_TradingName_List","dms_TradingNameFull_List","dms_ABN_List","dms_JurisdictionList","dms_Sector_List","dms_Segment_List","dms_FormControl_List","dms_RPT_List","dms_RPTMonth_List","dms_CRCPlength_List","dms_FRCPlength_List","dms_PRCPlength_List","dms_663_List","dms_DeterminationRef_List","dms_Addr1_List","dms_Addr2_List","dms_Suburb_List","dms_State_List","dms_PostCode_List","dms_PAddr1_List","dms_PAddr2_List","dms_PSuburb_List","dms_PState_List","dms_PPostCode_List","dms_ContactName1_List","dms_ContactPh1_List","dms_ContactEmail_List","dms_CBD_flag","dms_Urban_flag","dms_ShortRural_flag","dms_LongRural_flag","dms_FeederType_5_flag","dms_MAIFI_flag_List","dms_FeederName_1","dms_FeederName_2","dms_FeederName_3","dms_FeederName_4","dms_FeederName_5","dms_Public_Lighting_List","Column1"]
[null,"ActewAGL Distribution","ActewAGL Distribution",76670568688,"ACT","Electricity","Distribution","Revenue cap","Financial","June",5,5,5,5,"2014-19 Distribution Determination","40 Bunda Street",null,"CANBERRA","ACT",2600,"GPO BOX 366",null,"CANBERRA","ACT",2601,"Robert Walker","02 6248 3847","robert.walker@actewagle.com.au","NO","YES","YES","NO","NO","NO","CBD","Urban","Short rural","Long rural",null,"YES","ActewAGL Distribution"]
[null,"ActewAGL Distribution (Tx Assets)","ActewAGL Distribution (Tx Assets)",76670568688,"ACT","Electricity","Distribution","Revenue cap","Financial","June",5,5,5,5,"distribution determination","40 Bunda Street",null,"CANBERRA","ACT",2600,"GPO BOX 366",null,"CANBERRA","ACT",2601,"Robert Walker","02 6248 3847","robert.walker@actewagle.com.au","NO","YES","YES","NO","NO","NO","CBD","Urban","Short rural","Long rural",null,"NO","ActewAGL Distribution (Tx Assets)"]
[null,"ActewAGL Gas","ActewAGL Gas",76670568688,"ACT","Gas","Distribution","Weighted average price cap","Financial","June",5,5,5,"x",null,"40 Bunda Street",null,"CANBERRA","ACT",2600,"GPO BOX 366",null,"CANBERRA","ACT",2601,"Philip Deamer","02 6248 3438","GasAAReview@actewagl.com.au","NO","NO","NO","NO","NO","-","CBD","Urban","Short rural","Long rural",null,"NO","ActewAGL Gas"]
[null,"AEMO","Australian Energy Market Operator Ltd",94072010327,"Vic","Electricity","Transmission","-","Financial","March",5,5,5,"x","-","Level 22","530 Collins Street","MELBOURNE","Vic",3000,"GPO Box 2008",null,"MELBOURNE","Vic",3001,null,null,null,"NO","NO","NO","NO","NO","-","CBD","Urban","Short rural","Long rural",null,"NO","AEMO"]
[null,"AGN (Albury and Victoria)","Australian Gas Networks Limited (reporting data for Albury and Victoria)",19078551685,"Vic","Gas","Distribution","Weighted average price cap","Calendar","December",5,5,5,"x",null,"Level 6","400 King William Street","ADELAIDE","SA",5000,"PO Box 6468","Halifax Street","ADELAIDE","SA",5000,"Craig de Laine","08 8418 1129 ","craig.delaine@agn.com.au","NO","NO","NO","NO","NO","-","CBD","Urban","Short rural","Long rural",null,"NO","AGN (Albury)"]
[null,"AGN (Albury)","Australian Gas Networks Limited (reporting data for Albury)",19078551685,"Vic","Gas","Distribution","Weighted average price cap","Calendar","December",5,5,5,"x",null,"Level 6","400 King William Street","ADELAIDE","SA",5000,"PO Box 6468","Halifax Street","ADELAIDE","SA",5000,"Craig de Laine","08 8418 1129 ","craig.delaine@agn.com.au","NO","NO","NO","NO","NO","-","CBD","Urban","Short rural","Long rural",null,"NO"]
[null,"AGN (SA)","Australian Gas Networks Limited (reporting data for SA)",19078551685,"SA","Gas","Distribution","Weighted average price cap","Financial","June",5,5,5,5,"distribution determination","Level 6","400 King William Street","ADELAIDE","SA",5000,"PO Box 6468","Halifax Street","ADELAIDE","SA",5000,"Craig de Laine","08 8418 1129 ","craig.delaine@agn.com.au","NO","NO","NO","NO","NO","-","CBD","Urban","Short rural","Long rural",null,"NO","AGN (SA)"]
[null,"AGN (Victoria)","Australian Gas Networks Limited (reporting data for Victoria)",19078551685,"Vic","Gas","Distribution","Weighted average price cap","Calendar","December",5,5,5,"x",null,"Level 6","400 King William Street","ADELAIDE","SA",5000,"PO Box 6468","Halifax Street","ADELAIDE","SA",5000,"Craig de Laine","08 8418 1129 ","craig.delaine@agn.com.au","NO","NO","NO","NO","NO","-","CBD","Urban","Short rural","Long rural",null,"NO","AGN (Victoria)"]
[null,"Amadeus","APT Pipelines (NT) Pty Ltd",39009737393,"NT","Gas","Transmission","Weighted average price cap","Financial","June",5,5,5,"x","n/a","Level 19, HSBC Building","580 George Street","SYDNEY","NSW",2000,"Level 19, HSBC Building","580 George Street","SYDNEY","NSW",2000,"Alexandra Curran","02 9275 0020","alexandra.curran@apa.com.au","NO","NO","NO","NO","NO","-","CBD","Urban","Short rural","Long rural",null,"NO","Amadeus"]
[null,"APA GasNet","APA GasNet Australia (Operations) Pty Ltd","065083009","Vic","Gas","Transmission","Weighted average price cap","Calendar","December",5,5,5,"x",null,"Level 19, HSBC Building","580 George Street","SYDNEY","NSW",2000,"PO Box R41",null,"ROYAL EXCHANGE","NSW",1225,"Alexandra Curran","02 9275 0020","alexandra.curran@apa.com.au","NO","NO","NO","NO","NO","-","CBD","Urban","Short rural","Long rural",null,"NO","APA GasNet"]
[null,"Ausgrid","Ausgrid",78508211731,"NSW","Electricity","Distribution","Revenue cap","Financial","June",5,5,5,5,"2014-19 Distribution Determination","570 George St",null,"SYDNEY","NSW",2000,"GPO Box 4009",null,"SYDNEY","NSW",2001,"John Thomson","02 9269 2312","john.thomson@ausgrid.com.au","YES","YES","YES","YES","NO","NO","CBD","Urban","Short rural","Long rural",null,"YES","Ausgrid"]
[null,"Ausgrid (Tx Assets)","Ausgrid (Tx Assets)",67505337385,"NSW","Electricity","Distribution","Revenue cap","Financial","June",5,5,5,5,"distribution determination","570 George St",null,"SYDNEY","NSW",2000,"GPO Box 4009",null,"SYDNEY","NSW",2001,"John Thomson","02 9269 2312","john.thomson@ausgrid.com.au","YES","YES","YES","YES","NO","NO","CBD","Urban","Short rural","Long rural",null,"NO","Ausgrid (Tx Assets)"]
[null,"AusNet (D)","AusNet Electricity Services Pty Ltd",91064651118,"Vic","Electricity","Distribution","Revenue cap","Calendar","December",5,5,5,2,"2016-20 Distribution Determination","Level 32","2 Southbank Boulevard","SOUTHBANK","Vic",3006,"Locked Bag 14051",null,"MELBOURNE CITY MAIL CENTRE","Vic",8001,"Thomas Hall",null,"thomas. hall@ausnetservices.com.au","NO","YES","YES","YES","NO","YES","CBD","Urban","Short rural","Long rural",null,"YES","AusNet (D)"]
[null,"AusNet (Gas)","AusNet Gas Services","086015036","Vic","Gas","Distribution","Weighted average price cap","Calendar","December",5,5,5,"X",null,"Level 19, HSBC Building","580 George Street","SYDNEY","NSW",2000,"PO Box R41",null,"ROYAL EXCHANGE","NSW",1225,"Alexandra Curran","02 9275 0020","alexandra.curran@apa.com.au","NO","NO","NO","NO","NO","-","CBD","Urban","Short rural","Long rural",null,"NO","AusNet (Gas)"]
[null,"AusNet (T)","Ausnet Services (Transmission) Ltd",48116124362,"Vic","Electricity","Transmission","Revenue cap","Financial","March",5,5,5,2,"transmission determination","Level 32","2 Southbank Boulevard","SOUTHBANK","Vic",3006,"Locked Bag 14051",null,"MELBOURNE CITY MAIL CENTRE","Vic",8001,"Clare Thompson","03 9695 6670","clare.e.thompson@ausnetservices.com.au","NO","NO","NO","NO","NO","-","CBD","Urban","Short rural","Long rural",null,"NO","AusNet (T)"]
[null,"Australian Distribution Co.","Australian Distribution Co.",11222333444,"-","Electricity","Distribution","Revenue cap","Financial","June",5,5,5,2,"distribution determination","123 Straight Street",null,"SYDNEY","NSW",2000,"PO Box 123",null,"SYDNEY","NSW",2000,"Bob Smith","02 1234 5678","bob@auselec.net.au","YES","YES","YES","YES","NO","NO","CBD","Urban","Short rural","Long rural",null,"YES","Australian Distribution Co."]
[null,"Australian Distribution Co. (Gas)","Australian Gas Distribution Co. ",11222333444,"NSW","Gas","Distribution","Weighted average price cap","Financial","June",5,5,5,null,null,"123 Straight Street",null,"SYDNEY","NSW",2000,"PO Box 123",null,"SYDNEY","NSW",2000,"Bob Smith","02 1234 5678","bob@auselec.net.au","NO","NO","NO","NO","NO","-","CBD","Urban","Short rural","Long rural",null,"NO","Australian Distribution Co. (Vic)"]
[null,"Australian Distribution Co. (Vic)","Australian Distribution Co. (Victoria)",11222333444,"Vic","Electricity","Distribution","Revenue cap","Calendar","December",5,5,5,2,"distribution determination","123 Straight Street",null,"MELBOURNE","Vic",3000,"PO Box 123",null,"MELBOURNE","Vic",3000,"Bob Smith","02 1234 5678","bob@auselec.net.au","NO","NO","NO","NO","NO","YES","CBD","Urban","Short rural","Long rural",null,"YES","Australian Distribution Co. (Vic)"]
[null,"Australian Transmission Co.","Australian Transmission Co.",11222333444,"-","Electricity","Transmission","Revenue cap","Financial","June",5,5,5,5,"transmission determination","123 Straight Street",null,"SYDNEY","NSW",2000,"PO Box 123",null,"SYDNEY","NSW",2000,"Bob Smith","02 1234 5678","bob@auselec.net.au","NO","NO","NO","NO","NO","-","CBD","Urban","Short rural","Long rural",null,"NO","Australian Transmission Co."]
[null,"Central Ranges Pipeline (D)","Central Ranges Pipeline Pty Ltd",108218355,"NSW","Gas","Distribution","Weighted average price cap","Financial","June",15,5,5,5,"distribution determination","Level 19","580 George Street","SYDNEY","NSW",2000,"PO Box R41",null,"ROYAL EXCHANGE","NSW",1225,"Scott Young","02 9275 0031","scott.young@apa.com.au","NO","NO","NO","NO","NO","-","CBD","Urban","Short rural","Long rural",null,"NO"]
[null,"Central Ranges Pipeline (T)","Central Ranges Pipeline Pty Ltd",108218355,"NSW","Gas","Distribution","Weighted average price cap","Financial","June",14,5,5,5,"transmission determination","Level 19","580 George Street","SYDNEY","NSW",2000,"PO Box R41",null,"ROYAL EXCHANGE","NSW",1225,"Scott Young","02 9275 0031","scott.young@apa.com.au","NO","NO","NO","NO","NO","-","CBD","Urban","Short rural","Long rural",null,"NO"]
[null,"CitiPower","CitiPower",76064651056,"Vic","Electricity","Distribution","Revenue cap","Calendar","December",5,5,5,2,"2016-20 Distribution Determination","40 Market Street",null,"MELBOURNE","Vic",3000,"Locked Bag 14090",null,"MELBOURNE","Vic",8001,"Hannah Williams","03 9683 4088","hwilliams@powercor.com.au","YES","YES","NO","NO","NO","YES","CBD","Urban","Short rural","Long rural",null,"YES","CitiPower"]
[null,"Directlink","Directlink",16779340889,"Qld","Electricity","Transmission","Revenue cap","Financial","June",5,5,5,5,"transmission determination","Level 25","580 George Street","SYDNEY","NSW",2000,"PO Box R41",null,"ROYAL EXCHANGE","NSW",1225,"Mark Allen","02 9275 0010","mark.allen@apa.com.au","NO","NO","NO","NO","NO","-","CBD","Urban","Short rural","Long rural",null,"NO","Directlink"]
[null,"ElectraNet","ElectraNet",41094482416,"SA","Electricity","Transmission","Revenue cap","Financial","June",5,5,5,5,"transmission determination","52-55 East Terrace","Rymill Park","ADELAIDE","SA",5000,"PO Box 7096","Hutt Street Post Office","ADELAIDE","SA",5000,"Bill Jackson","08 8404 7969","jackson.bill@electranet.com.au","NO","NO","NO","NO","NO","-","CBD","Urban","Short rural","Long rural",null,"NO","ElectraNet"]
[null,"Endeavour Energy","Endeavour Energy",11247365823,"NSW","Electricity","Distribution","Revenue cap","Financial","June",5,5,5,5,"2014-19 Distribution Determination","51 Huntingwood Drive",null,"HUNTINGWOOD","NSW",2148,"PO Box 811",null,"SEVEN HILLS","NSW",1730,"Jon Hocking","02 9853 4386 / 0407 348 156","Jon.Hocking@Endeavourenergy.com.au","NO","YES","YES","YES","NO","NO","CBD","Urban","Short rural","Long rural",null,"YES","Endeavour Energy"]
[null,"Energex","Energex",40078849055,"Qld","Electricity","Distribution","Revenue cap","Financial","June",5,5,5,5,"2015-20 Distribution Determination","26 Reddacliff Street",null,"NEWSTEAD","Qld",4006,"26 Reddacliff Street",null,"NEWSTEAD","QLD",4006,"Jenny Doyle, Group Manager Regulatory Affairs","(07) 3851 6416","jenny.doyle@ergon.com.au","YES","YES","YES","NO","NO","NO","CBD","Urban","Short rural","Long rural",null,"YES","Energex"]
[null,"Ergon Energy","Ergon Energy",50087646062,"Qld","Electricity","Distribution","Revenue cap","Financial","June",5,5,5,5,"2015-20 Distribution Determination","22 Walker Street",null,"TOWNSVILLE","Qld",4810,"Po Box 264",null,"FORTITUDE VALLEY","QLD",4006,"Jenny Doyle, Group Manager Regulatory Affairs","(07) 3851 6416","jenny.doyle@ergon.com.au","NO","YES","YES","YES","NO","NO","CBD","Urban","Short rural","Long rural",null,"YES","Ergon Energy"]
[null,"Essential Energy","Essential Energy",37428185226,"NSW","Electricity","Distribution","Revenue cap","Financial","June",5,5,5,5,"2014-19 Distribution Determination","8 Buller Street",null,"PORT MACQUARIE","NSW",2444,"PO Box 5730",null,"PORT MACQUARIE","NSW",2444,"Catherine Waddell","02 6338 3553","catherine.waddell@essentialenergy.com.au","NO","NO","YES","YES","NO","NO","CBD","Urban","Short rural","Long rural",null,"YES","Essential Energy"]
[null,"Jemena Electricity","Jemena Electricity",82064651083,"Vic","Electricity","Distribution","Revenue cap","Calendar","December",5,5,5,2,"2016-20 Distribution Determination","Level 16","567 Collins Street","MELBOURNE","Vic",3000,"PO Box 16182",null,"MELBOURNE","Vic",8001,"Matthew Serpell","03 9173 8231","matthew.serpell@jemena.com.au","NO","YES","YES","NO","NO","YES","CBD","Urban","Short rural","Long rural",null,"YES","Jemena Electricity"]
[null,"JGN","Jemena Gas Networks (NSW) Ltd","003 004 322","NSW","Gas","Distribution","Weighted average price cap","Financial","June",5,5,5,null,null,null,null,null,null,null,null,null,null,null,null,"please provide contact details",null,null,"NO","NO","NO","NO","NO","-","CBD","Urban","Short rural","Long rural",null,"NO","JGN"]
[null,"Multinet Gas","Multinet Gas (DB No.1) Pty Ltd (ACN 086 026 986), Multinet Gas (DB No.2) Pty Ltd (ACN 086 230 122)","086026986","Vic","Gas","Distribution","Weighted average price cap","Calendar","December",5,5,5,"x",null,"43-45 Centreway",null,"MT WAVERLEY","Vic",3149,null,null,null,null,null,"Andrew Schille","03 8846 9860","andrew.schille@ue.com.au","NO","NO","NO","NO","NO","-","CBD","Urban","Short rural","Long rural",null,"NO","Multinet Gas"]
[null,"Murraylink","Murraylink",79181207909,"SA","Electricity","Transmission","Revenue cap","Financial","June",5,5,5,5,"transmission determination","Level 19","580 George Street","SYDNEY","NSW",2000,"PO Box R41",null,"ROYAL EXCHANGE","NSW",1225,"Scott Young","02 9275 0031","scott.young@apa.com.au","NO","NO","NO","NO","NO","-","CBD","Urban","Short rural","Long rural",null,"NO","Murraylink"]
[null,"Power and Water","Power and Water Corporation",15947352360,"NT","Electricity","Distribution","Revenue cap","Financial","June",5,5,5,"x","distribution determination","GPO Box 1921",null,"DARWIN","NT",801,"GPO Box 1921",null,"DARWIN","NT",801,"Lucy Moon","08 8924 5822","Lucy.Moon@powerwater.com.au","YES","YES","YES","YES","NO","NO","CBD","Urban","Short rural","Long rural",null,"NO","Power and Water"]
[null,"Powercor Australia","Powercor Australia",89064651109,"Vic","Electricity","Distribution","Revenue cap","Calendar","December",5,5,5,2,"2016-20 Distribution Determination","40 Market Street",null,"MELBOURNE","Vic",3000,"Locked bag 14090",null,"MELBOURNE","Vic",8001,"Hannah Williams","03 9683 4088","hwilliams@powercor.com.au","NO","NO","YES","YES","NO","YES","CBD","Urban","Short rural","Long rural",null,"YES","Powercor Australia"]
[null,"Powerlink","Queensland Electricity Transmission Corporation Limited trading as Powerlink Queensland",82078849233,"Qld","Electricity","Transmission","Revenue cap","Financial","June",5,5,5,5,"transmission determination","33 Harold St",null,"VIRGINIA","Qld",4014,"PO Box 1193",null,"VIRGINIA","QLD",4014,"Jennifer Harris","07 3860 2667","jharris@powerlink.com.au","NO","NO","NO","NO","NO","-","CBD","Urban","Short rural","Long rural",null,"NO","Powerlink"]
[null,"Roma to Brisbane Pipeline","APT Petroleum Pipelines Limited t/a Roma to Brisbane Pipeline","009 737 393","Qld","Gas","Transmission","Weighted average price cap","Financial","June",5,5,5,"x","n/a","580 George Street",null,"SYDNEY","NSW",2000,"PO Box R41",null,"ROYAL EXCHANGE","NSW",1225,"Mark Allen","02 9275 0010","mark.allen@apa.com.au","NO","NO","NO","NO","NO","-","CBD","Urban","Short rural","Long rural",null,"NO","Roma to Brisbane Pipeline"]
[null,"SA Power Networks","SA Power Networks",13332330749,"SA","Electricity","Distribution","Revenue cap","Financial","June",5,5,5,5,"2015-20 Distribution Determination","1 Anzac Highway",null,"KESWICK","SA",5035,"GPO Box 77",null,"ADELAIDE","SA",5000,"Richard Sibly","08 8404 5613","richard.sibly@sapowernetworks.com.au","NO","NO","YES","YES","NO","NO","CBD","Urban","Short rural","Long rural",null,"NO","SA Power Networks"]
[null,"TasNetworks (D)","TasNetworks (D)",24167357299,"Tas","Electricity","Distribution","Revenue cap","Financial","June",5,5,5,5,"distribution determination","1-7 Maria Street",null,"LENAH VALLEY","Tas",7008,"PO Box 606",null,"MOONAH","Tas",7009,"Tim Astley","03 6271 6151","tim.astley@tasnetworks.com.au","YES","YES","YES","YES","YES","NO","Critical Infrastructure","High density commercial","Urban","High density rural","Low density rural","YES","TasNetworks (D)"]
[null,"TasNetworks (T)","TasNetworks (T)",24167357299,"Tas","Electricity","Transmission","Revenue cap","Financial","June",5,5,5,5,"transmission determination","1-7 Maria Street",null,"LENAH VALLEY","Tas",7008,"PO Box 606",null,"MOONAH","Tas",7009,"Tim Astley","03 6271 6151","tim.astley@tasnetworks.com.au","NO","NO","NO","NO","NO","-","CBD","Urban","Short rural","Long rural",null,"NO","TasNetworks (T)"]
[null,"TransGrid","NSW Electricity Networks Operations Pty Ltd trading as TransGrid","70 250 995 390","NSW","Electricity","Transmission","Revenue cap","Financial","June",4,5,5,5,"transmission determination","180 Thomas Street",null,"SYDNEY","NSW",2000,"PO Box A1000",null,"SYDNEY SOUTH","NSW",1235,"Garrie Chubb","0408 210 221","garrie.chubb@transgrid.com.au","NO","NO","NO","NO","NO","-","CBD","Urban","Short rural","Long rural",null,"NO","TransGrid"]
[null,"United Energy","United Energy",70064651029,"Vic","Electricity","Distribution","Revenue cap","Calendar","December",5,5,5,2,"2016-20 Distribution Determination","43-45 Centreway",null,"MOUNT WAVERLEY","Vic",3149,"PO Box 449",null,"MOUNT WAVERLEY","Vic",3170,"Mathew Abraham","03 8846 9758","mathew.abraham@ue.com.au","NO","NO","YES","NO","NO","YES","CBD","Urban","Short rural","Long rural",null,"YES","United Energy"]
[]
[]
[]
[]
[null,"The Reg Year Ending (dms_RYE) must be set to the last year of the regulatory period. For forecast data is is usually (FRCP_y5) for actual it is a single year (CRY). For historical actual data the RYE will need to be set manually in the business details sheet by setting the dms_Multiyear_flag to 1 and putting the correct value in 'dms_Specified_FinalYear. See cells C67:C68"]
[null,"dms_Model_List ","dms_Model_Name_Format1","dms_Worksheet_List","dms_Model_Span_List"]
[null,"ARR","Annual Reporting",{"$f":"IF(dms_MultiYear_ResponseFlag=\"yes\",\"RECAST HISTORICAL ANNUAL REPORTING\",\"ANNUAL REPORTING\")","v":"RECAST HISTORICAL ANNUAL REPORTING"},1]
[null,"CA","Category Analysis",{"$f":"IF(dms_MultiYear_ResponseFlag=\"yes\",\"RECAST HISTORICAL CATEGORY ANALYSIS\",\"CATEGORY ANALYSIS\")","v":"RECAST HISTORICAL CATEGORY ANALYSIS"},1]
[null,"CESS","Capitlal Expenditure","CAPITLAL EXPENDITURE SHARING SCHEMING",5]
[null,"CPI","CPI","CPI",5]
[null,"EB","Economic Benchmarking",{"$f":"IF(dms_MultiYear_ResponseFlag=\"yes\",\"RECAST HISTORICAL ECONOMIC BENCHMARKING  - CALENDAR YEARS\",\"ECONOMIC BENCHMARKING\")","v":"RECAST HISTORICAL ECONOMIC BENCHMARKING  - CALENDAR YEARS"},1]
[null,"Pricing","Pricing Proposal","PRICING PROPOSAL",5]
[null,"PTRM","Post Tax Revenue Model","POST TAX REVENUE MODEL",5]
[null,"Reset","Regulatory Reporting (Reset)","REGULATORY REPORTING STATEMENT",5]
[null,"RFM","Roll Forward Model","ROLL FORWARD MODEL",5]
[null,"WACC","Weighted Average Cost of Capital","WEIGHTED AVERAGE COST OF CAPITAL",1]
[]
[]
[]
[null,"Financial","Calendar",null,"PREVIOUS",null,"CURRENT",null,"FORTHCOMING"]
[null,"1987-88","1988","PRCP_y1",{"$f":"INDEX(INDIRECT(dms_RPT),dms_PRCP_start_row)","v":2011},"CRCP_y1",{"$f":"INDEX(INDIRECT(dms_RPT),dms_CRCP_start_row)","v":2016},{"$f":"FRCP_y1","v":2021},{"$f":"INDEX(INDIRECT(dms_RPT),dms_FRCP_start_row)","v":2021}]
[null,"1988-89","1989","PRCP_y2",{"$f":"INDEX(INDIRECT(dms_RPT),dms_PRCP_start_row+1)","v":2012},"CRCP_y2",{"$f":"INDEX(INDIRECT(dms_RPT),dms_CRCP_start_row+1)","v":2017},"FRCP_y2",{"$f":"INDEX(INDIRECT(dms_RPT),dms_FRCP_start_row+1)","v":2022}]
[null,"1989-90","1990","PRCP_y3",{"$f":"INDEX(INDIRECT(dms_RPT),dms_PRCP_start_row+2)","v":2013},"CRCP_y3",{"$f":"INDEX(INDIRECT(dms_RPT),dms_CRCP_start_row+2)","v":2018},"FRCP_y3",{"$f":"INDEX(INDIRECT(dms_RPT),dms_FRCP_start_row+2)","v":2023}]
[null,"1990-91","1991","PRCP_y4",{"$f":"INDEX(INDIRECT(dms_RPT),dms_PRCP_start_row+3)","v":2014},"CRCP_y4",{"$f":"INDEX(INDIRECT(dms_RPT),dms_CRCP_start_row+3)","v":2019},"FRCP_y4",{"$f":"INDEX(INDIRECT(dms_RPT),dms_FRCP_start_row+3)","v":2024}]
[null,"1991-92","1992","PRCP_y5",{"$f":"INDEX(INDIRECT(dms_RPT),dms_PRCP_start_row+4)","v":2015},"CRCP_y5",{"$f":"INDEX(INDIRECT(dms_RPT),dms_CRCP_start_row+4)","v":2020},"FRCP_y5",{"$f":"INDEX(INDIRECT(dms_RPT),dms_FRCP_start_row+4)","v":2025}]
[null,"1992-93","1993","PRCP_y6",{"$f":"INDEX(INDIRECT(dms_RPT),dms_PRCP_start_row+5)","v":2016},"CRCP_y6",{"$f":"INDEX(INDIRECT(dms_RPT),dms_CRCP_start_row+5)","v":2021},"FRCP_y6",{"$f":"INDEX(INDIRECT(dms_RPT),dms_FRCP_start_row+5)","v":2026}]
[null,"1993-94","1994","PRCP_y7",{"$f":"INDEX(INDIRECT(dms_RPT),dms_PRCP_start_row+6)","v":2017},"CRCP_y7",{"$f":"INDEX(INDIRECT(dms_RPT),dms_CRCP_start_row+6)","v":2022},"FRCP_y7",{"$f":"INDEX(INDIRECT(dms_RPT),dms_FRCP_start_row+6)","v":2027}]
[null,"1994-95","1995","PRCP_y8",{"$f":"INDEX(INDIRECT(dms_RPT),dms_PRCP_start_row+7)","v":2018},"CRCP_y8",{"$f":"INDEX(INDIRECT(dms_RPT),dms_CRCP_start_row+7)","v":2023},"FRCP_y8",{"$f":"INDEX(INDIRECT(dms_RPT),dms_FRCP_start_row+7)","v":2028}]
[null,"1995-96","1996","PRCP_y9",{"$f":"INDEX(INDIRECT(dms_RPT),dms_PRCP_start_row+8)","v":2019},"CRCP_y9",{"$f":"INDEX(INDIRECT(dms_RPT),dms_CRCP_start_row+8)","v":2024},"FRCP_y9",{"$f":"INDEX(INDIRECT(dms_RPT),dms_FRCP_start_row+8)","v":2029}]
[null,"1996-97","1997","PRCP_y10",{"$f":"INDEX(INDIRECT(dms_RPT),dms_PRCP_start_row+9)","v":2020},"CRCP_y10",{"$f":"INDEX(INDIRECT(dms_RPT),dms_CRCP_start_row+9)","v":2025},"FRCP_y10",{"$f":"INDEX(INDIRECT(dms_RPT),dms_FRCP_start_row+9)","v":2030}]
[null,"1997-98","1998","PRCP_y11",{"$f":"INDEX(INDIRECT(dms_RPT),dms_PRCP_start_row+10)","v":2021},"CRCP_y11",{"$f":"INDEX(INDIRECT(dms_RPT),dms_CRCP_start_row+10)","v":2026},"FRCP_y11",{"$f":"INDEX(INDIRECT(dms_RPT),dms_FRCP_start_row+10)","v":2031}]
[null,"1998-99","1999","PRCP_y12",{"$f":"INDEX(INDIRECT(dms_RPT),dms_PRCP_start_row+11)","v":2022},"CRCP_y12",{"$f":"INDEX(INDIRECT(dms_RPT),dms_CRCP_start_row+11)","v":2027},"FRCP_y12",{"$f":"INDEX(INDIRECT(dms_RPT),dms_FRCP_start_row+11)","v":2032}]
[null,"1999-00","2000","PRCP_y13",{"$f":"INDEX(INDIRECT(dms_RPT),dms_PRCP_start_row+12)","v":2023},"CRCP_y13",{"$f":"INDEX(INDIRECT(dms_RPT),dms_CRCP_start_row+12)","v":2028},"FRCP_y13",{"$f":"INDEX(INDIRECT(dms_RPT),dms_FRCP_start_row+12)","v":2033}]
[null,"2000-01","2001","PRCP_y14",{"$f":"INDEX(INDIRECT(dms_RPT),dms_PRCP_start_row+13)","v":2024},"CRCP_y14",{"$f":"INDEX(INDIRECT(dms_RPT),dms_CRCP_start_row+13)","v":2029},"FRCP_y14",{"$f":"INDEX(INDIRECT(dms_RPT),dms_FRCP_start_row+13)","v":2034}]
[null,"2001-02","2002","PRCP_y15",{"$f":"INDEX(INDIRECT(dms_RPT),dms_PRCP_start_row+14)","v":2025},"CRCP_y15",{"$f":"INDEX(INDIRECT(dms_RPT),dms_CRCP_start_row+14)","v":2030},"FRCP_y15",{"$f":"INDEX(INDIRECT(dms_RPT),dms_FRCP_start_row+14)","v":2035}]
[null,"2002-03","2003","PRCP_y16",{"$f":"INDEX(INDIRECT(dms_RPT),dms_PRCP_start_row+15)","v":2026},"CRCP_y16",{"$f":"INDEX(INDIRECT(dms_RPT),dms_CRCP_start_row+15)","v":2031},"FRCP_y16",{"$f":"INDEX(INDIRECT(dms_RPT),dms_FRCP_start_row+15)","v":2036}]
[null,"2003-04","2004"]
[null,"2004-05","2005"]
[null,"2005-06","2006",null,"CRY - FRY"]
[null,"2006-07","2007","dms_y1",{"$f":"IFERROR(INDEX(INDIRECT(dms_RPT),dms_CRY_start_row),0)","v":"2006"}]
[null,"2007-08","2008","dms_y2",{"$f":"IFERROR(INDEX(INDIRECT(dms_RPT),dms_CRY_start_row+1),0)","v":"2007"}]
[null,"2008-09","2009","dms_y3",{"$f":"IFERROR(INDEX(INDIRECT(dms_RPT),dms_CRY_start_row+2),0)","v":"2008"}]
[null,"2009-10",2010,"dms_y4",{"$f":"IFERROR(INDEX(INDIRECT(dms_RPT),dms_CRY_start_row+3),0)","v":"2009"}]
[null,"2010-11",2011,"dms_y5",{"$f":"IFERROR(INDEX(INDIRECT(dms_RPT),dms_CRY_start_row+4),0)","v":2010}]
[null,"2011-12",2012,"dms_y6",{"$f":"IFERROR(INDEX(INDIRECT(dms_RPT),dms_CRY_start_row+5),0)","v":2011}]
[null,"2012-13",2013,"dms_y7",{"$f":"IFERROR(INDEX(INDIRECT(dms_RPT),dms_CRY_start_row+6),0)","v":2012}]
[null,"2013-14",2014,"dms_y8",{"$f":"IFERROR(INDEX(INDIRECT(dms_RPT),dms_CRY_start_row+7),0)","v":2013}]
[null,"2014-15",2015,"dms_y9",{"$f":"IFERROR(INDEX(INDIRECT(dms_RPT),dms_CRY_start_row+8),0)","v":2014}]
[null,"2015-16",2016,"dms_y10",{"$f":"IFERROR(INDEX(INDIRECT(dms_RPT),dms_CRY_start_row+9),0)","v":2015}]
[null,"2016-17",2017,"dms_y11",{"$f":"IFERROR(INDEX(INDIRECT(dms_RPT),dms_CRY_start_row+10),0)","v":2016}]
[null,"2017-18",2018,"dms_y12",{"$f":"IFERROR(INDEX(INDIRECT(dms_RPT),dms_CRY_start_row+11),0)","v":2017}]
[null,"2018-19",2019,"dms_y13",{"$f":"IFERROR(INDEX(INDIRECT(dms_RPT),dms_CRY_start_row+12),0)","v":2018}]
[null,"2019-20",2020,"dms_y14",{"$f":"IFERROR(INDEX(INDIRECT(dms_RPT),dms_CRY_start_row+13),0)","v":2019}]
[null,"2020-21",2021,"dms_y15",{"$f":"IFERROR(INDEX(INDIRECT(dms_RPT),dms_CRY_start_row+14),0)","v":2020}]
[null,"2021-22",2022,"dms_y16",{"$f":"IFERROR(INDEX(INDIRECT(dms_RPT),dms_CRY_start_row+15),0)","v":2021}]
[null,"2022-23",2023]
[null,"2023-24",2024]
[null,"2024-25",2025]
[null,"2025-26",2026]
[null,"2026-27",2027]
[null,"2027-28",2028]
[null,"2028-29",2029]
[null,"2029-30",2030]
[null,"2030-31",2031]
[null,"2031-32",2032]
[null,"2032-33",2033]
[null,"2033-34",2034]
[null,"2034-35",2035]
[null,"2035-36",2036]
[null,"2036-37","2037"]

{"sheet":"AER ETL","index":3,"n_rows":144,"n_cols":8,"rows_kept":144,"cut":false,"hidden":true,"merged":[[9,4,9,8],[70,1,72,1],[10,0,14,0],[11,4,11,8],[13,2,13,4],[17,0,24,0],[25,0,30,0],[33,0,58,0]]}
[null,"AER ETL INFORMATION"]
[]
[null,"USES NAMED RANGES FLAG","yes","dms_Defined_Names_Used"]
[]
[null,"IF THIS IS AN ABC RIN - make sure the the named range CRY is applied and the named range dms_dollar_nom_UOM is applied"]
[null,"IF THIS IS A RESET RIN - make sure the named ranges CRY and dms_dollar_nom_UOM are NOT present in the workbook"]
[null,"FOR ABC RINS THAT SPAN MULTIPLE YEARS - make sure MultiYear Flag is set and final year entered as required"]
[]
[null,"Full trading name",{"$f":"INDEX(dms_TradingNameFull_List,MATCH(dms_TradingName,dms_TradingName_List))","v":"Powercor Australia"},null,"dms_TradingNameFull"]
["Selected here","Model / RIN","EB","dms_Model"]
["Read from Business & other details","Source",{"$f":"dms_Selected_Source","v":"Regulatory proposal"},"dms_Source"]
[null,"Data quality",{"$f":"dms_Selected_Quality","v":"Consolidated"},"dms_DQ_1"]
[null,"Data status",{"$f":"dms_Selected_Status","v":"Public"},"dms_DQ_2"]
[null,"Amendment reason",{"$f":"dms_Amendment_Text","v":"."},null,null,"dms_AmendmentReason"]
[null,"Submission date",{"$f":"dms_Typed_Submission_Date","v":"2020-01-31"},"dms_SubmissionDate"]
[]
["Redundant","EBSS - First application of scheme in forthcoming period?","No"]
["Pre-populated from lookup table","Data ingestion data quality","Consolidated","dms_DataQuality","=IF(dms_DQ_2=\"Confidential\",\"Consolidated\",\"Public\")"]
[null,"Sector",{"$f":"INDEX(dms_Sector_List,MATCH(dms_TradingName,dms_TradingName_List))","v":"Electricity"},"dms_Sector","=INDEX(dms_Sector_List,MATCH(dms_TradingName,dms_TradingName_List))"]
[null,"Segment",{"$f":"INDEX(dms_Segment_List,MATCH(dms_TradingName,dms_TradingName_List))","v":"Distribution"},"dms_Segment","=INDEX(dms_Segment_List,MATCH(dms_TradingName,dms_TradingName_List))"]
[null,"Regulatory Year Ending",{"$f":"dms_RYE_result","v":"2018"},"dms_RYE","=IF(dms_MultiYear_Flag=1,LEFT(dms_Specified_FinalYear,2)&RIGHT(dms_Specified_FinalYear,2),INDEX(dms_RYE_Formula_Result,MATCH(dms_Model,dms_Model_List)))"]
[null,"Reporting Period Type",{"$f":"INDEX(dms_RPT_List,MATCH(dms_TradingName,dms_TradingName_List))","v":"Calendar"},"dms_RPT","=INDEX(dms_RPT_List,MATCH(dms_TradingName,dms_TradingName_List))"]
[null,"EB/CA Unit of Measure for Monetary Values","$0s","dms_dollar_nom_UOM","If the cover sheet is attached to an ABC RIN apply the NAMED RANGE to the cell"]
[null,"Security Classification","Public","dms_Classification","Always Public"]
[null,"Jurisdiction",{"$f":"INDEX(dms_JurisdictionList,MATCH(dms_TradingName,dms_TradingName_List))","v":"Vic"},"dms_Jurisdiction","=INDEX(dms_JurisdictionList,MATCH(dms_TradingName,dms_TradingName_List))"]
["Relevant for PTRM, RFMs and Reset RINS","$ REAL REFERENCES"]
[null,"Does the named range CRY exist in this file? ",{"$f":"IFERROR(CRY,\"NO\")","v":"2006"}]
[null,"CRY-1  (last full calendar year before CRY)",{"$f":"IFERROR(IF(dms_RPT=\"calendar\",CRY-1,LEFT(CRY,4)),\"CRY not present\")","v":2005},"dms_Cal_Year_B4_CRY","'=IF(dms_RPT=\"financial\",VALUE(LEFT(dms_SingleYear_FinalYear_Result,4)),VALUE(LEFT(dms_SingleYear_FinalYear_Result,4)-1))"]
[null,"Dollar $ real month",{"$f":"INDEX(dms_RPTMonth_List,MATCH(dms_TradingName,dms_TradingName_List))","v":"December"},"dms_RPTMonth","=INDEX(dms_RPTMonth_List,MATCH(dms_TradingName,dms_TradingName_List))"]
[null,"Dollar $ real  (the last month before the FRCP_y1)",{"$f":"IF(dms_SingleYearModel=\"yes\",CONCATENATE(dms_RPTMonth)&\" \"&VALUE((LEFT(CRY,2))&RIGHT(CRY,2)),CONCATENATE(dms_RPTMonth)&\" \"&dms_DollarReal_year)","v":"December 2006"},"dms_DollarReal","=IF(SUM(dms_SingleYear_Model)>0,CONCATENATE(dms_RPTMonth)&\" \"&VALUE((LEFT(CRY,2))&RIGHT(CRY,2)),CONCATENATE(dms_RPTMonth)&\" \"&VALUE((LEFT(dms_RYE,2)&RIGHT(dms_RYE,2))))"]
[null,"Dollar $ real previous year (PRCP_y5)",{"$f":"IF(dms_SingleYearModel=\"yes\",CONCATENATE(dms_RPTMonth)&\" \"&VALUE((LEFT(CRY,2))&RIGHT(CRY,2)),CONCATENATE(dms_RPTMonth)&\" \"&dms_Previous_DollarReal_year)","v":"December 2006"},"dms_DollarReal_Prev","=IF(SUM(dms_SingleYear_Model)>0,CONCATENATE(dms_RPTMonth)&\" \"&VALUE(((LEFT(CRY,2))&RIGHT(CRY,2))-1),CONCATENATE(dms_RPTMonth)&\" \"&VALUE(((LEFT(dms_CRCP_FirstYear_Result,2)&RIGHT(dms_CRCP_FirstYear_Result,2))))-1)"]
[null,"PTRM/ RFMs"]
[null,"Form of control",{"$f":"INDEX(dms_FormControl_List,MATCH(dms_TradingName,dms_TradingName_List))","v":"Revenue cap"},"dms_FormControl","=INDEX(dms_FormControl_List,MATCH(dms_TradingName,dms_TradingName_List))"]
["All potential values for Regulatory Years or RYEs as calculated","This block works out the various RYE's for ALL RIN types and MODELS"]
[null,"dms_start_year",{"$f":"FRCP_y1","v":2021},"FRCP_y1 from cover sheet"]
[null,"dms_CRY_start_year",{"$f":"IFERROR(CRY,0)","v":"2006"},"If this has a year in it then named range CRY exists"]
[null,"dms_CRY_start_row",{"$f":"MATCH(CRY,INDIRECT(dms_RPT),0)","v":19}]
[null,"dms_FRCP_start_row",{"$f":"MATCH(dms_start_year,INDIRECT(dms_RPT),0)","v":34},"Uses FRCP_y1 as a start reference"]
[null,"dms_CRCP_start_row",{"$f":"dms_FRCP_start_row-dms_CRCPlength_Num","v":29},"Uses the value in dms_CRCPlength_Num"]
[null,"dms_PRCP_start_row",{"$f":"dms_FRCP_start_row-SUM(dms_CRCPlength_Num+dms_PRCPlength_Num)","v":24},"Uses the value in dms_CRCPlength_Num and dms_PRCPlength_Num"]
[null,"dms_RYE_start_row",{"$f":"dms_FRCP_start_row+(dms_FRCPlength_Num-1)","v":38},"Uses the value in dms_FRCPlength_Num-1"]
[null,"FRCP_start_year",{"$f":"INDEX(INDIRECT(dms_RPT),dms_FRCP_start_row)","v":2021},"Converts the FRCP start row to display the year"]
[null,"CRCP_start_year",{"$f":"INDEX(INDIRECT(dms_RPT),dms_CRCP_start_row)","v":2016},"Converts the CRCP start row to display the year"]
[null,"PRCP_start_year",{"$f":"INDEX(INDIRECT(dms_RPT),dms_PRCP_start_row)","v":2011},"Converts the PRCP start row to display the year"]
[null,"FRCP_final_year",{"$f":"INDEX(INDIRECT(dms_RPT),dms_FRCP_start_row+dms_FRCPlength_Num-1)","v":2025},"Finds the FRCP final year"]
[null,"CRCP_final_year",{"$f":"INDEX(INDIRECT(dms_RPT),dms_CRCP_start_row+dms_CRCPlength_Num-1)","v":2020},"Finds the CRCP final year"]
[null,"PRCP_final_year",{"$f":"INDEX(INDIRECT(dms_RPT),dms_PRCP_start_row+dms_FRCPlength_Num-1)","v":2015},"Finds the PRCP final year"]
[null,"dms_Reset_final_year",{"$f":"INDEX(INDIRECT(dms_RPT),dms_RYE_start_row)","v":2025},"For Resets and PTRM/RFMs (same as FRCP_final_year)"]
[null,"dms_SpecifiedYear_final_year",{"$f":"FRY","v":2018},"FRY from cover sheet"]
[null,"dms_DollarReal_year",{"$f":"LEFT(CRCP_final_year,2)&RIGHT(CRCP_final_year,2)","v":"2020"},"Uses the value in CRCP_final_year"]
[null,"dms_Previous_DollarReal_year",{"$f":"LEFT(PRCP_final_year,2)&RIGHT(PRCP_final_year,2)","v":"2015"},"Uses the value in PRCP_final_year"]
[null,"dms_CRY_RYE",{"$f":"IFERROR(LEFT(CRY,2)&RIGHT(CRY,2),0)","v":"2006"},"For ABC single year RINS"]
[null,"dms_Reset_RYE",{"$f":"IF(dms_Model_Span>1,(LEFT(dms_Reset_final_year,2)&RIGHT(dms_Reset_final_year,2)),0)","v":0},"If model span > 1 then uses dms_Reset_final_year otherwise it's a multi year ABC"]
[null,"dms_Specified_RYE",{"$f":"IF(dms_MultiYear_ResponseFlag=\"Yes\",(LEFT(dms_Specified_FinalYear,2)&RIGHT(dms_Specified_FinalYear,2)),0)","v":"2018"},"If multi year ABC then it uses dms_Specified_FinalYear"]
[null,"dms_Model_Span",{"$f":"INDEX(dms_Model_Span_List,MATCH(dms_Model,dms_Model_List))","v":1},"Only single year RINS are set as 1. Otherwise the result of 5 is used to signify that it is more than 1 year span"]
[null,"dms_RYE_result",{"$f":"IF(dms_MultiYear_ResponseFlag=\"yes\",dms_Specified_RYE,(IF(dms_Model_Span>1,dms_Reset_RYE,dms_CRY_RYE)))","v":"2018"},"Nested IF - feeds into dms_RYE"]
[null,"dms_Reset_Span",{"$f":"IF(dms_Reset_RYE>0,CONCATENATE(FRCP_y1,\" to \",FRCP_final_year),0)","v":0},"Reset span of years as text"]
[null,"dms_SpecifiedYear_Span",{"$f":"IF(dms_Specified_RYE>0,CONCATENATE(CRY,\" to \",dms_Specified_FinalYear),0)","v":"2006 to 2018"},"Multi year ABC span of years as text"]
[null,"dms_Header_Span",{"$f":"IF(dms_MultiYear_Flag=1,dms_SpecifiedYear_Span,IF(dms_Model_Span>1,dms_Reset_Span,CRY))","v":"2006 to 2018"},"NESTED IF - for Sheet Headers"]
[null,"ABC RINS THAT SPAN MULTIPLE YEARS"]
[null,"This is a multi year ABC RIN?","Yes"]
[null,null,{"$f":"IF(dms_MultiYear_ResponseFlag=\"No\",0,1)","v":1},"dms_MultiYear_Flag","This is set from the answer provided above"]
[null,null,{"$f":"IF(dms_MultiYear_Flag=1,FRY,\"not a Multiple year submission\")","v":2018},"dms_Specified_FinalYear","The result here is returned to dms_CRCP_FinalYear_Result if response to Q in C73 is \"yes\" and dms_MultiYear_Flag is set to 1"]
[null," Start year for 5.2 in Multi year ABC RINS",{"$f":"IFERROR(IF(dms_MultiYear_Flag=1,FRY,CRY),\"not an ABC\")","v":2018},"dms_0502_Inst_Year","=IF(dms_MultiYear_Flag=1,FRY,CRY)",null,"For single year RINS this is CRY - multi year RINS need to start a the end of the span of years (ie. FRY)"]
[null,"WHAT IS THE RYE?"]
[null,"Reg Period Lengths"]
[null,"PRCP length in years",{"$f":"INDEX(dms_PRCPlength_List,MATCH(dms_TradingName,dms_TradingName_List))","v":5},"dms_PRCPlength_Num","=INDEX(dms_PRCPlength_List,MATCH(dms_TradingName,dms_TradingName_List))"]
[null,"CRCP length in years",{"$f":"INDEX(dms_CRCPlength_List,MATCH(dms_TradingName,dms_TradingName_List))","v":5},"dms_CRCPlength_Num","=INDEX(dms_CRCPlength_List,MATCH(dms_TradingName,dms_TradingName_List))"]
[null,"FRCP length in years",{"$f":"INDEX(dms_FRCPlength_List,MATCH(dms_TradingName,dms_TradingName_List))","v":5},"dms_FRCPlength_Num","=INDEX(dms_FRCPlength_List,MATCH(dms_TradingName,dms_TradingName_List))"]
[null,"Single year RIN?"]
[null,"Single Year ABC RIN ?",{"$f":"IF(dms_Model=\"EB\",1,0)","v":1},"dms_EB"]
[null,null,{"$f":"IF(dms_Model=\"CA\",1,0)","v":0},"dms_CA","=dms_SingleYear_Model"]
[null,null,{"$f":"IF(dms_Model=\"ARR\",1,0)","v":0},"dms_ARR"]
[null,"Is this a single Year ABC RIN?",{"$f":"IF(SUM(dms_SingleYear_Model)=1,\"yes\",\"no\")","v":"yes"},"dms_SingleYearModel","=IF(SUM(dms_SingleYear_Model)=1,\"yes\",\"no\")"]
[null,"Single Year Final Year Result",{"$f":"IF(AND(dms_SingleYearModel=\"yes\",dms_MultiYear_Flag=0),CRY,0)","v":0},"dms_SingleYear_FinalYear_Result","=IFERROR(IF(SUM(dms_SingleYear_Model)<>0,(INDIRECT(dms_SingleYear_FinalYear_Ref)),\"not a single year RIN\"),\"CRY not present\")"]
[null,"Multi year RIN?"]
[]
[null,"Multi Year Reset/Model?",{"$f":"IF(dms_Model_Span>1,\"yes\",\"no\")","v":"no"}]
[null,"Final year result for Reset/Model",{"$f":"IF(dms_Model_Span>1,dms_Reset_final_year,0)","v":0}]
[]
[null,"Multi Year ABC RIN?",{"$f":"IF(dms_MultiYear_Flag=1,\"yes\",\"no\")","v":"yes"}]
[null,"Final year result for ABC multi year",{"$f":"IF(dms_MultiYear_Flag=1,dms_SpecifiedYear_final_year,0)","v":2018}]
[]
[null,"EB RINS"]
[null,"Calendar Year for table 3.6 data",{"$f":"IFERROR(IF(dms_Segment=\"Transmission\",dms_Cal_Year_B4_CRY,CRY),\"CRY not present\")","v":"2006"},"dms_0306_Year","=IF(dms_Segment=\"Transmission\",dms_Cal_Year_B4_CRY,CRY)"]
[null,"CA RINS"]
[null,"Find how many rows in tables 6.3 sustained interruptions?",null,null,"dms_060301_MaxRows only returns a valid value when cover sheet is attached to a CA file"]
[null,null,{"$f":"IF(dms_Model<>\"CA\",\"not a CA\",\"Is a CA\")","v":"not a CA"},null,"=IF(dms_Model<>\"CA\",\"not a CA\",\"Is a CA\")"]
[null,"dms_060301_Avg_Duration_Sustained_Int_Values present?",{"$f":"IFERROR(IF(INDEX(dms_060301_Avg_Duration_Sustained_Int_Values,1,1)<>\"\",\"yes\",\"no\"),\"no\")","v":"no"},"dms_060301_checkvalue","=IFERROR(IF(INDEX(dms_060301_Avg_Duration_Sustained_Int_Values,1,1)<>\"\",\"yes\",\"no\"),\"no\")"]
[null,null,{"$f":"IF(AND(dms_Model=\"CA\",(dms_060301_checkvalue=\"no\")),\"error - NR not present\",\"no errors\")","v":"no errors"},null,"=IF(AND(dms_Model=\"CA\",(dms_060301_checkvalue=\"no\")),\"error - NR not present\",\"no errors\")"]
[null,"Table 6.3.1 - last row reference",{"$f":"IFERROR(IF(dms_Model=\"CA\",LOOKUP(2,1/(dms_060301_Avg_Duration_Sustained_Int_Values<>\"\"),(ROW(dms_060301_Avg_Duration_Sustained_Int_Values))),\"not a CA\"),\"6.3 not present\")","v":"not a CA"},"dms_060301_LastRow","=IFERROR(IF(dms_Model=\"CA\",LOOKUP(2,1/(dms_060301_Avg_Duration_Sustained_Int_Values<>\"\"),(ROW(dms_060301_Avg_Duration_Sustained_Int_Values))),\"not a CA\"),\"6.3 not present\")"]
[null,"Table 6.3.1 - max number rows",{"$f":"IFERROR(IF(dms_Model=\"CA\",(dms_060301_LastRow-15),\"not a CA\"),\"error\")","v":"not a CA"},"dms_060301_MaxRows","=IFERROR(IF(dms_Model=\"CA\",(dms_060301_LastRow-15),\"not a CA\"),\"error\")"]
[null,"Table 6.6.3 - Public lighting repair - no. business days",{"$f":"INDEX(dms_663_List,MATCH(dms_TradingName,dms_TradingName_List))","v":2},"dms_663","=INDEX(dms_663_List,MATCH(dms_TradingName,dms_TradingName_List))"]
[null,"ARR or RESET RINS"]
[null,"How many rows in tables 6.1 or 6.7?  (leap year?)","insert dms_LeapYear NR if required",null,"'dms_LeapYear is used to determine dms_060701_Max_Rows BUT it is only found on worksheet 6.1 or 6.7 and the date value in the cell is used to determine whether it is a leap year"]
[null,"Is dms_LeapYear named range present?",{"$f":"IFERROR(IF(dms_LeapYear,\"yes\"),\"no\")","v":"no"}]
[null,"Table 6.7.1 - includes a leap year?",{"$f":"IFERROR(IF(MONTH(DATE(YEAR(dms_LeapYear),2,29))=2,\"is a leap year\",\"not a leap year\"),\n\"dms_LeapYear not present\")","v":"dms_LeapYear not present"},"dms_LeapYear_Result","=IFERROR(IF(MONTH(DATE(YEAR(dms_LeapYear),2,29))=2,\"is a leap year\",\"not a leap year\"),\"dms_LeapYear not present\")"]
[null,"MaxRows if Reset and leap year",{"$f":"IF(dms_LeapYear_Result=\"is a leap year\",1827,1826)","v":1826},"dms_060701_Reset_MaxRows","=IF(dms_LeapYear_Result=\"is a leap year\",1827,1826)",null,null,"number of days present in Reset RIN table"]
[null,"MaxRows if ARR and leap year",{"$f":"IF(dms_LeapYear_Result=\"is a leap year\",366,365)","v":365},"dms_060701_ARR_MaxRows","=IF(dms_LeapYear_Result=\"is a leap year\",366,365)",null,null,"number of days present in ARR RIN table"]
[null,"Table 6.7.1 - Max Rows (leap year/ non leap year)",{"$f":"IF(dms_Model=\"ARR\",dms_060701_ARR_MaxRows,IF(dms_Model=\"Reset\",dms_060701_Reset_MaxRows,\"not a relevant RIN type\"))","v":"not a relevant RIN type"},"dms_060701_MaxRows","=IF(dms_Model=\"ARR\",dms_060701_ARR_MaxRows,IF(dms_Model=\"Reset\",dms_060701_Reset_MaxRows,\"not a relevant RIN type\"))"]
[null,"How many columns in 6.7?   (4 or 5 feeder categories)",{"$f":"IF(dms_FifthFeeder_flag_NSP=\"NO\",\"This NSP has only 4 feeder categories\",\"This NSP has 5 feeder categories\")","v":"This NSP has only 4 feeder categories"}]
[null,"Table 6.7.1 - Last column (# of feeder categories > 4)",{"$f":"IF(dms_FifthFeeder_flag_NSP=\"NO\",10,12)","v":10},"dms_060701_MaxCols","=IF(dms_FifthFeeder_flag_NSP=\"NO\",8,10)"]
[null,"Table 6.7.1 - Number of offset rows",{"$f":"IF(dms_Model=\"ARR\",15,9)","v":9},"dms_060701_OffsetRows","=IF(dms_Model=\"ARR\",15,9)"]
[null,"Start date for telephone answering in 6.1 or 6.7?",null,null,"Using 060101 as naming standard not 060701 for start dates"]
[null,"Table 6.1.1 and 6.7.1 - Start Date as Text",{"$f":"IF(dms_SingleYearModel=\"yes\",(CONCATENATE(IF(LEN(CRY)=4,\"1-Jan-\",\"1-Jul-\"),LEFT(CRY,4))),(CONCATENATE(IF(LEN(PRCP_y4)=4,\"1-Jan-\",\"1-Jul-\"),LEFT(PRCP_y4,4))))","v":"1-Jan-2006"},"dms_060101_StartDateTxt","=IF(SUM(dms_SingleYear_Model)>1,(CONCATENATE(IF(LEN(CRY)=4,\"1-Jan-\",\"1-Jul-\"),LEFT(CRY,4))),(CONCATENATE(IF(LEN(CRCP_y4)=4,\"1-Jan-\",\"1-Jul-\"),LEFT(CRCP_y4,4))))"]
[null,"Table 6.1.1 and 6.7.1 - Start Date as Date Value",{"$f":"DATEVALUE(dms_060701_StartDateTxt)","v":38718},"dms_060101_StartDateVal","=DATEVALUE(dms_060701_StartDateTxt)"]
[null,"ARRs"]
[null,"How many rows in table 6.8?","insert dms_060801_StartCell NR if required",null,"dms_060801_StartCell is only found on worksheet 6.8 and is used to determine the starting date for the date range"]
[null,"Is dms_060801_StartCell named range present?","yes",null,"=IFERROR(IF((ROW(dms_060801_StartCell)-1)=1,\"yes\",\"yes\"),\"no\")"]
[null,"Table 6.8 - Number of offset rows",12,"dms_0608_OffsetRows","=IFERROR(IF(dms_Model=\"ARR\",(ROW(dms_060801_StartCell)-1),\"not an ARR\"),\"6.8 error\")"]
[null,"Table 6.8 - Last row","0","dms_0608_LastRow","=IFERROR(IF(dms_060801_StartCell<>\"\",IF(dms_Model=\"ARR\",(LOOKUP(2,1/(dms_060801_01_Values<>\"\"),(ROW(dms_060801_01_Values)))),\"not an ARR\"),0),\"0\")"]
[null,"Table 6.8 - MaxRows",{"$f":"IFERROR(IF(dms_Model=\"ARR\",(MAX(0,dms_0608_LastRow-dms_0608_OffsetRows)),\"not an ARR\"),\"0\")","v":"not an ARR"},"dms_060801_MaxRows","=IFERROR(IF(dms_Model=\"ARR\",(MAX(0,dms_0608_LastRow-dms_0608_OffsetRows)),\"not an ARR\"),\"0\")"]
[null,"TNSP RESET RINS"]
[null,"Table 7.9.4 only appears in TNSPs Reset RIN"]
[null,"Table 7.9.4 - first year",{"$f":"LEFT(PRCP_y3,4)","v":"2013"},"dms_070904_Start_Year","=LEFT(PRCP_y3,4)"]
[]
[null,"MISC"]
[null,"Distribution Determination Reference",{"$f":"INDEX(dms_DeterminationRef_List,MATCH(dms_TradingName,dms_TradingName_List))","v":"2016-20 Distribution Determination"},"dms_DeterminationRef"]
[null,"Public lighting NSP?",{"$f":"INDEX(dms_Public_Lighting_List,MATCH(dms_TradingName,dms_TradingName_List))","v":"YES"},"dms_Public_Lighting","=INDEX(dms_Public_Lighting_List,MATCH(dms_TradingName,dms_TradingName_List))"]
[null,"CBD Feeder for this business",{"$f":"INDEX(dms_CBD_flag,MATCH(dms_TradingName,dms_TradingName_List))","v":"NO"},"dms_CBD_flag_NSP"]
[null,"Urban Feeder for this business",{"$f":"INDEX(dms_Urban_flag,MATCH(dms_TradingName,dms_TradingName_List))","v":"NO"},"dms_Urban_flag_NSP"]
[null,"Short rural Feeder for this business",{"$f":"INDEX(dms_ShortRural_flag,MATCH(dms_TradingName,dms_TradingName_List))","v":"YES"},"dms_ShortRural_flag_NSP"]
[null,"Long rural Feeder for this business",{"$f":"INDEX(dms_LongRural_flag,MATCH(dms_TradingName,dms_TradingName_List))","v":"YES"},"dms_LongRural_flag_NSP"]
[null,"Fifth Feeder Category (eg. TasNetworks (D))",{"$f":"INDEX(dms_FeederType_5_flag,MATCH(dms_TradingName,dms_TradingName_List))","v":"NO"},"dms_FifthFeeder_flag_NSP","=INDEX(dms_FeederType_5_flag,MATCH(dms_TradingName,dms_TradingName_List))"]
[]
[null,"DISCARD FILES"]
[null,"discard this record?","NO","dms_DISCARD","If record is to be discarded from DB set this flag to YES"]
[]
[null,"SUBSET FILES"]
[null,"Is this Submission File a Subset File","YES","dms_Partial"]
[]
[]
[null,"REGULATORY YEARS FOR MULTI RYE SUBMISSIONS"]
[null,"Multiple RYE flag","YES","dms_Multi_RYE_flag"]
[null,null,"Manually specify RYE","Named ranges to apply"]
[null,null,2013,"dms_RYE_01"]
[null,null,2014,"dms_RYE_02"]
[null,null,2015,"dms_RYE_03"]
[null,null,2016,"dms_RYE_04"]
[null,null,2017,"dms_RYE_05"]
[null,null,2018,"dms_RYE_06"]
[null,null,2019,"dms_RYE_07"]
[null,null,2020,"dms_RYE_08"]
[null,null,2021,"dms_RYE_09"]

{"sheet":"Instructions","index":4,"n_rows":27,"n_cols":4,"rows_kept":27,"cut":false,"hidden":false,"merged":[[18,1,24,1],[18,2,18,4],[26,2,26,4],[10,2,10,4],[12,1,14,1],[12,2,12,4],[13,2,13,3],[14,2,14,4],[16,2,16,4],[7,1,8,1],[7,2,7,3],[8,2,8,4],[1,1,1,4],[2,1,2,4],[3,1,3,4],[4,1,4,4],[5,2,5,4]]}
[]
[null,{"$f":"CONCATENATE(dms_Sector,\" \",dms_Segment,\" \", \"Network Service Provider\")","v":"Electricity Distribution Network Service Provider"}]
[null,{"$f":"INDEX(dms_Worksheet_List,MATCH(dms_Model,dms_Model_List))","v":"RECAST HISTORICAL ECONOMIC BENCHMARKING  - CALENDAR YEARS"}]
[null,{"$f":"CONCATENATE(\"This template is to be used by \",dms_TradingNameFull,\" to fulfil its reporting obligations to the AER.\")","v":"This template is to be used by Powercor Australia to fulfil its reporting obligations to the AER."}]
[null,"INSTRUCTIONS"]
[null,"GENERAL","Complete the Business & other details worksheet before entering data or values in any other worksheets. The Business & other details worksheet is linked to other worksheets within the workbook and automatically generates certain column headings and conditional formatting."]
[]
[null,"CONFIDENTIAL INFORMATION","\nPlease use the macro at the top of each \nworksheet to identify confidential information\nin the confidential workbook. \n\n"]
[null,null,"-Do this by selecting the cell or cells that contain confidential information and then run the Mark selection as CONFIDENTIAL macro. This will format the cells a specific colour that is identified by the AER's database which in turn marks that information as confidential.\n\n-To reverse this, select the cell or cells and run the Return selection to NON-CONFIDENTIAL macro."]
[]
[null,"RESPONSES","\nPlease return two (2) files to the AER: \n\n1. A confidential version which must contain a complete set of all responses with confidential information marked using the Mark selection CONFIDENTIAL macro and which has been completed using the locked template file provided by the AER. \n\n2. A public version with confidential information either removed completely or aggregated in some form together with writtten consent to disclose the public version of the response.\n\nUse the drop down box on the Business and other details worksheet to identify the file as either confidential ('consolidated') or public. "]
[]
[null,"AMENDMENTS","\nIf an NSP wishes to correct data previously submitted to the AER it should resubmit that data using the original completed submission as the starting point. Please make any necessary changes to the data. Data that is not being amended should be left unchanged. \n\nNSPs must identify the reason for the amendments in the Amendment Reason box on the  Business and other details worksheet. NSPs may provide further details regarding any amendments in the Amendments worksheet. \n\n."]
[null,null,"NSP may use Amended Data macro \nto highlight cells that contain amended data.\nNB: if data is also CONFIDENTIAL, re-apply \nthe Confidentiality macro after applying the \nAmended macro"]
[null,null,"Please resubmit two (2) files - a confidential version and a public version of the amended submission to the AER"]
[]
[null,"UNITS OF MEASURE","\nAll amounts are to be unrounded and reported on a one for one basis: that is 1000 is to be entered as '1000'. Applicable units of measure may be identified in the table column headings or row descriptors.\n\n"]
[]
[null,"INPUT / NON-INPUT CELLS"]
[null,null,null,"Yellow = Input cell (mandatory)"]
[null,null,null,"Darker yellow = input cell (mandatory)"]
[null,null,null,"Orange = input cell (if data available)"]
[null,null,null,"Grey = Not applicable/No inputs required"]
[null,null,null," \nPLEASE DO NOT ENTER TEXT into cells that are to contain numeric data."]
[]
[]
[null,"NAVIGATION","\nMany tables in the worksheets have been \"grouped\" to allow for easy navigation. To ungroup or group data use the outline symbols in the left margin (for Row groupings) or above the columns (for column groupings). \n\n\n\n"]

{"sheet":"Contents","index":5,"n_rows":13,"n_cols":4,"rows_kept":13,"cut":false,"hidden":false,"merged":[[5,2,5,3],[0,1,0,4]]}
[null,{"$f":"INDEX(dms_Worksheet_List,MATCH(dms_Model,dms_Model_List))","v":"RECAST HISTORICAL ECONOMIC BENCHMARKING  - CALENDAR YEARS"}]
[null,{"$f":"INDEX(dms_TradingNameFull_List,MATCH(dms_TradingName,dms_TradingName_List))","v":"Powercor Australia"}]
[null,{"$f":"dms_Header_Span","v":"2006 to 2018"}]
[]
[]
[null,null,"CONTENTS"]
[]
[null,null,"SUBMISSION","Business & other details"]
[]
[null,null,"ECONOMIC BENCHMARKING","3.1 Revenue"]
[null,null,null,"3.2 Operating expenditure"]
[null,null,null,"3.2.3 Provisions"]
[null,null,null,"3.3 Assets (RAB)"]

{"sheet":"Business & other details","index":6,"n_rows":74,"n_cols":80,"rows_kept":74,"cut":false,"hidden":false,"merged":[[69,43,71,87],[73,31,73,40],[73,43,73,58],[61,31,61,40],[61,43,61,58],[63,21,73,27],[63,31,63,40],[63,43,63,58],[65,31,65,40],[65,43,65,58],[67,31,67,40],[67,43,67,58],[69,31,71,40],[51,43,51,50],[51,52,51,59],[51,61,51,68],[51,70,51,77],[51,79,51,86],[53,21,55,27],[53,31,53,40],[53,43,53,50],[55,31,55,40],[55,43,55,50],[50,43,50,50],[50,52,50,59],[50,61,50,68],[50,70,50,77],[50,79,50,86],[47,43,47,50],[47,52,47,59],[47,61,47,68],[47,70,47,77],[47,79,47,86],[45,61,45,68],[45,70,45,77],[49,31,49,40],[49,43,49,50],[49,52,49,59],[49,61,49,68],[49,70,49,77],[45,79,45,86],[46,43,46,50],[46,52,46,59],[46,61,46,68],[46,70,46,77],[46,79,46,86],[49,79,49,86],[41,79,41,86],[42,43,42,50],[42,52,42,59],[42,61,42,68],[42,70,42,77],[42,79,42,86],[33,21,33,35],[33,37,33,58],[33,60,33,66],[33,68,33,89],[41,21,49,27],[41,31,41,40],[41,43,41,50],[41,52,41,59],[41,61,41,68],[41,70,41,77],[43,43,43,50],[43,52,43,59],[43,61,43,68],[43,70,43,77],[43,79,43,86],[45,31,45,40],[45,43,45,50],[45,52,45,59],[31,21,31,35],[31,37,31,58],[31,60,31,66],[31,68,31,89],[32,21,32,35],[32,37,32,58],[32,60,32,66],[32,68,32,89],[25,21,25,35],[25,37,25,40],[25,49,25,51],[25,60,25,66],[25,68,25,71],[25,80,25,82],[24,21,24,35],[24,37,24,51],[24,60,24,66],[24,68,24,82],[16,21,16,35],[16,37,16,48],[22,21,22,35],[22,37,22,58],[22,60,22,66],[22,68,22,89],[0,7,2,15],[3,21,3,57],[6,21,6,75],[8,16,8,93],[15,21,15,35],[15,37,15,58],[23,21,23,35],[23,37,23,58],[23,60,23,66],[23,68,23,89]]}
[null,null,null,null,null,null,null,null,null,null,null,null,null,null,null,null,null,null,null,null,null,{"$f":"INDEX(dms_Worksheet_List,MATCH(dms_Model,dms_Model_List))","v":"RECAST HISTORICAL ECONOMIC BENCHMARKING  - CALENDAR YEARS"}]
[null,null,null,null,null,null,null,null,null,null,null,null,null,null,null,null,null,null,null,null,null,{"$f":"INDEX(dms_TradingNameFull_List,MATCH(dms_TradingName,dms_TradingName_List))","v":"Powercor Australia"}]
[null,null,null,null,null,null,null,null,null,null,null,null,null,null,null,null,null,null,null,null,null,{"$f":"dms_Header_Span","v":"2006 to 2018"}]
[null,null,null,null,null,null,null,null,null,null,null,null,null,null,null,null,null,null,null,null,null,"BUSINESS & OTHER DETAILS"]
[]
[null,null,null,null,null,null,null,null,null,null,null,null,null,null,null,null,null,null,null,null,null,"INSTRUCTIONS"]
[null,null,null,null,null,null,null,null,null,null,null,null,null,null,null,null,null,null,null,null,null,"Complete the following business details regulatory template before entering data or values in any other regulatory template. This regulatory template is linked to other cells within the spreadsheet and automatically generates column headings and conditional formatting to distinguish business specific input and non-input cells. "]
[]
[null,null,null,null,null,null,null,null,null,null,null,null,null,null,null,null,"SUBMISSION PARTICULARS INPUT SHEET"]
[]
[]
[null,null,null,null,null,null,null,null,null,null,null,null,null,null,null,null,null,null,null,null,null,"ENTITY DETAILS"]
[]
[null,null,null,null,null,null,null,null,null,null,null,null,null,null,null,null,null,null,null,null,null,"Business Name"]
[]
[null,null,null,null,null,null,null,null,null,null,null,null,null,null,null,null,null,null,null,null,null,"Short name",null,null,null,null,null,null,null,null,null,null,null,null,null,null,null,"Powercor Australia"]
[null,null,null,null,null,null,null,null,null,null,null,null,null,null,null,null,null,null,null,null,null,"ACN/ABN",null,null,null,null,null,null,null,null,null,null,null,null,null,null,null,{"$f":"INDEX(dms_ABN_List,MATCH(dms_TradingName,dms_TradingName_List))","v":89064651109}]
[]
[]
[]
[null,null,null,null,null,null,null,null,null,null,null,null,null,null,null,null,null,null,null,null,null,"Business Address",null,null,null,null,null,null,null,null,null,null,null,null,null,null,null,null,null,null,null,null,null,null,null,null,null,null,null,null,null,null,null,null,null,null,null,null,null,null,null,null,null,null,null,null,null,null,"Postal Address"]
[]
[null,null,null,null,null,null,null,null,null,null,null,null,null,null,null,null,null,null,null,null,null,"Address 1",null,null,null,null,null,null,null,null,null,null,null,null,null,null,null,{"$f":"INDEX(dms_Addr1_List,MATCH(dms_TradingName,dms_TradingName_List))","v":"40 Market Street"},null,null,null,null,null,null,null,null,null,null,null,null,null,null,null,null,null,null,null,null,null,null,"Address 1",null,null,null,null,null,null,null,{"$f":"INDEX(dms_PAddr1_List,MATCH(dms_TradingName,dms_TradingName_List))","v":"Locked bag 14090"}]
[null,null,null,null,null,null,null,null,null,null,null,null,null,null,null,null,null,null,null,null,null,"Address 2",null,null,null,null,null,null,null,null,null,null,null,null,null,null,null,{"$f":"IF(ISBLANK(INDEX(dms_Addr2_List,MATCH(dms_TradingName,dms_TradingName_List))),\"\",(INDEX(dms_Addr2_List,MATCH(dms_TradingName,dms_TradingName_List))))","v":""},null,null,null,null,null,null,null,null,null,null,null,null,null,null,null,null,null,null,null,null,null,null,"Address 2",null,null,null,null,null,null,null,{"$f":"IF(ISBLANK(INDEX(dms_PAddr2_List,MATCH(dms_TradingName,dms_TradingName_List))),\"\",(INDEX(dms_PAddr2_List,MATCH(dms_TradingName,dms_TradingName_List))))","v":""}]
[null,null,null,null,null,null,null,null,null,null,null,null,null,null,null,null,null,null,null,null,null,"Suburb",null,null,null,null,null,null,null,null,null,null,null,null,null,null,null,{"$f":"INDEX(dms_Suburb_List,MATCH(dms_TradingName,dms_TradingName_List))","v":"MELBOURNE"},null,null,null,null,null,null,null,null,null,null,null,null,null,null,null,null,null,null,null,null,null,null,"Suburb",null,null,null,null,null,null,null,{"$f":"INDEX(dms_PSuburb_List,MATCH(dms_TradingName,dms_TradingName_List))","v":"MELBOURNE"}]
[null,null,null,null,null,null,null,null,null,null,null,null,null,null,null,null,null,null,null,null,null,"State",null,null,null,null,null,null,null,null,null,null,null,null,null,null,null,{"$f":"INDEX(dms_State_List,MATCH(dms_TradingName,dms_TradingName_List))","v":"Vic"},null,null,null,null,null,null,null,null,null,"Post code",null,null,null,null,null,null,null,null,null,null,null,null,"State",null,null,null,null,null,null,null,{"$f":"INDEX(dms_PState_List,MATCH(dms_TradingName,dms_TradingName_List))","v":"Vic"},null,null,null,null,null,null,null,null,null,"Post code"]
[]
[null,null,null,null,null,null,null,null,null,null,null,null,null,null,null,null,null,null,null,null,null,null,null,null,null,null,null,null,null,null,null,null,null,null,null,null,null,null,null,null,null,null,null,null,null,null,null,null,null,null,null,null,"`"]
[]
[null,null,null,null,null,null,null,null,null,null,null,null,null,null,null,null,null,null,null,null,null,"Contact Names"]
[]
[null,null,null,null,null,null,null,null,null,null,null,null,null,null,null,null,null,null,null,null,null,"Name",null,null,null,null,null,null,null,null,null,null,null,null,null,null,null,"Brent Cleeve",null,null,null,null,null,null,null,null,null,null,null,null,null,null,null,null,null,null,null,null,null,null,"Name"]
[null,null,null,null,null,null,null,null,null,null,null,null,null,null,null,null,null,null,null,null,null,"Phone",null,null,null,null,null,null,null,null,null,null,null,null,null,null,null,"(03) 9683 4465",null,null,null,null,null,null,null,null,null,null,null,null,null,null,null,null,null,null,null,null,null,null,"Phone"]
[null,null,null,null,null,null,null,null,null,null,null,null,null,null,null,null,null,null,null,null,null,"Email",null,null,null,null,null,null,null,null,null,null,null,null,null,null,null,"bcleeve@powercor.com.au",null,null,null,null,null,null,null,null,null,null,null,null,null,null,null,null,null,null,null,null,null,null,"Email"]
[]
[]
[]
[]
[null,null,null,null,null,null,null,null,null,null,null,null,null,null,null,null,null,null,null,null,null,"REGULATORY CONTROL PERIODS"]
[]
[]
[null,null,null,null,null,null,null,null,null,null,null,null,null,null,null,null,null,null,null,null,null,"RESETS",null,null,null,null,null,null,null,null,null,"Forthcoming period",null,null,null,null,null,null,null,null,null,null,null,2021,null,null,null,null,null,null,null,null,{"$f":"FRCP_y2","v":2022},null,null,null,null,null,null,null,null,{"$f":"FRCP_y3","v":2023},null,null,null,null,null,null,null,null,{"$f":"FRCP_y4","v":2024},null,null,null,null,null,null,null,null,{"$f":"FRCP_y5","v":2025}]
[null,null,null,null,null,null,null,null,null,null,null,null,null,null,null,null,null,null,null,null,null,null,null,null,null,null,null,null,null,null,null,null,null,null,null,null,null,null,null,null,null,null,null,{"$f":"FRCP_y6","v":2026},null,null,null,null,null,null,null,null,{"$f":"FRCP_y7","v":2027},null,null,null,null,null,null,null,null,{"$f":"FRCP_y8","v":2028},null,null,null,null,null,null,null,null,{"$f":"FRCP_y9","v":2029},null,null,null,null,null,null,null,null,{"$f":"FRCP_y10","v":2030}]
[null,null,null,null,null,null,null,null,null,null,null,null,null,null,null,null,null,null,null,null,null,null,null,null,null,null,null,null,null,null,null,null,null,null,null,null,null,null,null,null,null,null,null,{"$f":"FRCP_y11","v":2031},null,null,null,null,null,null,null,null,{"$f":"FRCP_y12","v":2032},null,null,null,null,null,null,null,null,{"$f":"FRCP_y13","v":2033},null,null,null,null,null,null,null,null,{"$f":"FRCP_y14","v":2034},null,null,null,null,null,null,null,null,{"$f":"FRCP_y15","v":2035}]
[]
[null,null,null,null,null,null,null,null,null,null,null,null,null,null,null,null,null,null,null,null,null,null,null,null,null,null,null,null,null,null,null,"Current period",null,null,null,null,null,null,null,null,null,null,null,{"$f":"CRCP_y1","v":2016},null,null,null,null,null,null,null,null,{"$f":"CRCP_y2","v":2017},null,null,null,null,null,null,null,null,{"$f":"CRCP_y3","v":2018},null,null,null,null,null,null,null,null,{"$f":"CRCP_y4","v":2019},null,null,null,null,null,null,null,null,{"$f":"CRCP_y5","v":2020}]
[null,null,null,null,null,null,null,null,null,null,null,null,null,null,null,null,null,null,null,null,null,null,null,null,null,null,null,null,null,null,null,null,null,null,null,null,null,null,null,null,null,null,null,{"$f":"CRCP_y6","v":2021},null,null,null,null,null,null,null,null,{"$f":"CRCP_y7","v":2022},null,null,null,null,null,null,null,null,{"$f":"CRCP_y8","v":2023},null,null,null,null,null,null,null,null,{"$f":"CRCP_y9","v":2024},null,null,null,null,null,null,null,null,{"$f":"CRCP_y10","v":2025}]
[null,null,null,null,null,null,null,null,null,null,null,null,null,null,null,null,null,null,null,null,null,null,null,null,null,null,null,null,null,null,null,null,null,null,null,null,null,null,null,null,null,null,null,{"$f":"CRCP_y11","v":2026},null,null,null,null,null,null,null,null,{"$f":"CRCP_y12","v":2027},null,null,null,null,null,null,null,null,{"$f":"CRCP_y13","v":2028},null,null,null,null,null,null,null,null,{"$f":"CRCP_y14","v":2029},null,null,null,null,null,null,null,null,{"$f":"CRCP_y15","v":2030}]
[]
[null,null,null,null,null,null,null,null,null,null,null,null,null,null,null,null,null,null,null,null,null,null,null,null,null,null,null,null,null,null,null,"Previous period",null,null,null,null,null,null,null,null,null,null,null,{"$f":"PRCP_y1","v":2011},null,null,null,null,null,null,null,null,{"$f":"PRCP_y2","v":2012},null,null,null,null,null,null,null,null,{"$f":"PRCP_y3","v":2013},null,null,null,null,null,null,null,null,{"$f":"PRCP_y4","v":2014},null,null,null,null,null,null,null,null,{"$f":"PRCP_y5","v":2015}]
[null,null,null,null,null,null,null,null,null,null,null,null,null,null,null,null,null,null,null,null,null,null,null,null,null,null,null,null,null,null,null,null,null,null,null,null,null,null,null,null,null,null,null,{"$f":"PRCP_y6","v":2016},null,null,null,null,null,null,null,null,{"$f":"PRCP_y7","v":2017},null,null,null,null,null,null,null,null,{"$f":"PRCP_y8","v":2018},null,null,null,null,null,null,null,null,{"$f":"PRCP_y9","v":2019},null,null,null,null,null,null,null,null,{"$f":"PRCP_y10","v":2020}]
[null,null,null,null,null,null,null,null,null,null,null,null,null,null,null,null,null,null,null,null,null,null,null,null,null,null,null,null,null,null,null,null,null,null,null,null,null,null,null,null,null,null,null,{"$f":"PRCP_y11","v":2021},null,null,null,null,null,null,null,null,{"$f":"PRCP_y12","v":2022},null,null,null,null,null,null,null,null,{"$f":"PRCP_y13","v":2023},null,null,null,null,null,null,null,null,{"$f":"PRCP_y14","v":2024},null,null,null,null,null,null,null,null,{"$f":"PRCP_y15","v":2025}]
[]
[null,null,null,null,null,null,null,null,null,null,null,null,null,null,null,null,null,null,null,null,null,"ANNUAL RINS",null,null,null,null,null,null,null,null,null,"Commencing year",null,null,null,null,null,null,null,null,null,null,null,"2006"]
[]
[null,null,null,null,null,null,null,null,null,null,null,null,null,null,null,null,null,null,null,null,null,null,null,null,null,null,null,null,null,null,null,"Final year",null,null,null,null,null,null,null,null,null,null,null,2018]
[]
[]
[]
[null,null,null,null,null,null,null,null,null,null,null,null,null,null,null,null,null,null,null,null,null,"SUBMISSION DETAILS"]
[]
[null,null,null,null,null,null,null,null,null,null,null,null,null,null,null,null,null,null,null,null,null,null,null,null,null,null,null,null,null,null,null,"RIN type",null,null,null,null,null,null,null,null,null,null,null,{"$f":"INDIRECT(dms_Model)","v":"Economic Benchmarking"}]
[]
[null,null,null,null,null,null,null,null,null,null,null,null,null,null,null,null,null,null,null,null,null,"THIS FILE",null,null,null,null,null,null,null,null,null,"Source",null,null,null,null,null,null,null,null,null,null,null,"Regulatory proposal"]
[]
[null,null,null,null,null,null,null,null,null,null,null,null,null,null,null,null,null,null,null,null,null,null,null,null,null,null,null,null,null,null,null,"Data Quality",null,null,null,null,null,null,null,null,null,null,null,"Consolidated"]
[]
[null,null,null,null,null,null,null,null,null,null,null,null,null,null,null,null,null,null,null,null,null,null,null,null,null,null,null,null,null,null,null,"Confidentiality Status",null,null,null,null,null,null,null,null,null,null,null,"Public"]
[]
[null,null,null,null,null,null,null,null,null,null,null,null,null,null,null,null,null,null,null,null,null,null,null,null,null,null,null,null,null,null,null,"Amended RIN \nAmendment Reason",null,null,null,null,null,null,null,null,null,null,null,"."]
[]
[]
[]
[null,null,null,null,null,null,null,null,null,null,null,null,null,null,null,null,null,null,null,null,null,null,null,null,null,null,null,null,null,null,null,"Submission Date",null,null,null,null,null,null,null,null,null,null,null,"2020-01-31"]

{"sheet":"3.1 Revenue","index":7,"n_rows":48,"n_cols":29,"rows_kept":48,"cut":false,"hidden":false,"merged":[[40,16,40,28],[8,2,8,14],[28,2,28,14],[40,2,40,14],[9,2,9,14],[27,2,27,14],[39,2,39,14],[8,16,8,28],[9,16,9,28],[27,16,27,28],[39,16,39,28],[28,16,28,28]]}
[null,{"$f":"INDEX(dms_Worksheet_List,MATCH(dms_Model,dms_Model_List))","v":"RECAST HISTORICAL ECONOMIC BENCHMARKING  - CALENDAR YEARS"}]
[null,{"$f":"INDEX(dms_TradingNameFull_List,MATCH(dms_TradingName,dms_TradingName_List))","v":"Powercor Australia"}]
[null,{"$f":"dms_Header_Span","v":"2006 to 2018"}]
[null,"3.1 REVENUE"]
[]
[null,"There are THREE (x TWO) tables on this worksheet. Both ROWS and COLUMNS have been grouped for ease of navigation. see the Instructions sheet on how to group or ungroup tables. "]
[]
[null,"3.1.1 - REVENUE GROUPING BY CHARGEABLE QUANTITY"]
[null,null,"STANDARD CONTROL SERVICES",null,null,null,null,null,null,null,null,null,null,null,null,null,"ALTERNATIVE CONTROL SERVICES"]
[null,null,"REVENUE\n($0's)",null,null,null,null,null,null,null,null,null,null,null,null,null,"REVENUE\n($0's)"]
[null,null,{"$f":"dms_y1","v":"2006"},{"$f":"dms_y2","v":"2007"},{"$f":"dms_y3","v":"2008"},{"$f":"dms_y4","v":"2009"},{"$f":"dms_y5","v":2010},{"$f":"dms_y6","v":2011},{"$f":"dms_y7","v":2012},{"$f":"dms_y8","v":2013},{"$f":"dms_y9","v":2014},{"$f":"dms_y10","v":2015},{"$f":"dms_y11","v":2016},{"$f":"dms_y12","v":2017},{"$f":"dms_y13","v":2018},null,{"$f":"dms_y1","v":"2006"},{"$f":"dms_y2","v":"2007"},{"$f":"dms_y3","v":"2008"},{"$f":"dms_y4","v":"2009"},{"$f":"dms_y5","v":2010},{"$f":"dms_y6","v":2011},{"$f":"dms_y7","v":2012},{"$f":"dms_y8","v":2013},{"$f":"dms_y9","v":2014},{"$f":"dms_y10","v":2015},{"$f":"dms_y11","v":2016},{"$f":"dms_y12","v":2017},{"$f":"dms_y13","v":2018}]
["DREV0101","Revenue from Fixed Customer Charges "]
["DREV0102","Revenue from Energy Delivery charges where time of use is not a determinant"]
["DREV0103","Revenue from On–Peak Energy Delivery charges "]
["DREV0104","Revenue from Shoulder period Energy Delivery Charges"]
["DREV0105","Revenue from Off–Peak Energy Delivery charges "]
["DREV0106","Revenue from controlled load customer charges"]
["DREV0107","Revenue from unmetered supplies"]
["DREV0108","Revenue from Contracted Maximum Demand charges"]
["DREV0109","Revenue from Measured Maximum Demand charges"]
["DREV0110","Revenue from metering charges"]
["DREV0111","Revenue from connection charges"]
["DREV0112","Revenue from public lighting charges"]
["DREV0113","Revenue from other Sources"]
["DREV01","Total revenue by chargeable quantity",{"$f":"SUM(C12:C24)","v":0},{"$f":"SUM(D12:D24)","v":0},0,0,0,0,0,0,{"$f":"SUM(K12:K24)","v":0},0,{"$f":"SUM(M12:M24)","v":0},0,0,null,{"$f":"SUM(Q12:Q24)","v":0},{"$f":"SUM(R12:R24)","v":0},{"$f":"SUM(S12:S24)","v":0},{"$f":"SUM(T12:T24)","v":0},{"$f":"SUM(U12:U24)","v":0},{"$f":"SUM(V12:V24)","v":0},{"$f":"SUM(W12:W24)","v":0},{"$f":"SUM(X12:X24)","v":0},0,0,0,0,0]
[]
[null,"3.1.2 - REVENUE GROUPING BY CUSTOMER TYPE OR CLASS"]
[null,null,"STANDARD CONTROL SERVICES",null,null,null,null,null,null,null,null,null,null,null,null,null,"ALTERNATIVE CONTROL SERVICES"]
[null,null,"REVENUE\n($0's)",null,null,null,null,null,null,null,null,null,null,null,null,null,"REVENUE\n($0's)"]
[null,null,{"$f":"dms_y1","v":"2006"},{"$f":"dms_y2","v":"2007"},{"$f":"dms_y3","v":"2008"},{"$f":"dms_y4","v":"2009"},{"$f":"dms_y5","v":2010},{"$f":"dms_y6","v":2011},{"$f":"dms_y7","v":2012},{"$f":"dms_y8","v":2013},{"$f":"dms_y9","v":2014},{"$f":"dms_y10","v":2015},{"$f":"dms_y11","v":2016},{"$f":"dms_y12","v":2017},{"$f":"dms_y13","v":2018},null,{"$f":"dms_y1","v":"2006"},{"$f":"dms_y2","v":"2007"},{"$f":"dms_y3","v":"2008"},{"$f":"dms_y4","v":"2009"},{"$f":"dms_y5","v":2010},{"$f":"dms_y6","v":2011},{"$f":"dms_y7","v":2012},{"$f":"dms_y8","v":2013},{"$f":"dms_y9","v":2014},{"$f":"dms_y10","v":2015},{"$f":"dms_y11","v":2016},{"$f":"dms_y12","v":2017},{"$f":"dms_y13","v":2018}]
["DREV0201","Revenue from residential Customers "]
["DREV0202","Revenue from Non residential customers not on demand tariffs "]
["DREV0203","Revenue from Non-residential low voltage demand tariff customers "]
["DREV0204","Revenue from Non-residential high voltage demand tariff customers "]
["DREV0205","Revenue from unmetered supplies"]
["DREV0206","Revenue from Other Customers"]
["DREV02","Total revenue by customer class",{"$f":"SUM(C31:C36)","v":0},{"$f":"SUM(D31:D36)","v":0},0,0,0,0,0,0,{"$f":"SUM(K31:K36)","v":0},0,0,0,0,null,{"$f":"SUM(Q31:Q36)","v":0},{"$f":"SUM(R31:R36)","v":0},{"$f":"SUM(S31:S36)","v":0},{"$f":"SUM(T31:T36)","v":0},{"$f":"SUM(U31:U36)","v":0},{"$f":"SUM(V31:V36)","v":0},{"$f":"SUM(W31:W36)","v":0},{"$f":"SUM(X31:X36)","v":0},0,0,0,0,0]
[]
[null,"3.1.3 - REVENUE (penalties) ALLOWED (deducted) THROUGH INCENTIVE SCHEMES"]
[null,null,"STANDARD CONTROL SERVICES",null,null,null,null,null,null,null,null,null,null,null,null,null,"ALTERNATIVE CONTROL SERVICES"]
[null,null,"REVENUE\n($0's)",null,null,null,null,null,null,null,null,null,null,null,null,null,"REVENUE\n($0's)"]
[null,null,{"$f":"dms_y1","v":"2006"},{"$f":"dms_y2","v":"2007"},{"$f":"dms_y3","v":"2008"},{"$f":"dms_y4","v":"2009"},{"$f":"dms_y5","v":2010},{"$f":"dms_y6","v":2011},{"$f":"dms_y7","v":2012},{"$f":"dms_y8","v":2013},{"$f":"dms_y9","v":2014},{"$f":"dms_y10","v":2015},{"$f":"dms_y11","v":2016},{"$f":"dms_y12","v":2017},{"$f":"dms_y13","v":2018},null,{"$f":"dms_y1","v":"2006"},{"$f":"dms_y2","v":"2007"},{"$f":"dms_y3","v":"2008"},{"$f":"dms_y4","v":"2009"},{"$f":"dms_y5","v":2010},{"$f":"dms_y6","v":2011},{"$f":"dms_y7","v":2012},{"$f":"dms_y8","v":2013},{"$f":"dms_y9","v":2014},{"$f":"dms_y10","v":2015},{"$f":"dms_y11","v":2016},{"$f":"dms_y12","v":2017},{"$f":"dms_y13","v":2018}]
["DREV0301","EBSS"]
["DREV0302","STPIS"]
["DREV0303","F-Factor "]
["DREV0304","S-Factor True up"]
["DREV0305","Other"]
["DREV03","Total revenue of incentive schemes",{"$f":"SUM(C43:C47)","v":0},{"$f":"SUM(D43:D47)","v":0},0,0,0,0,0,0,{"$f":"SUM(K43:K47)","v":0},0,0,0,0,null,{"$f":"SUM(Q43:Q47)","v":0},{"$f":"SUM(R43:R47)","v":0},{"$f":"SUM(S43:S47)","v":0},{"$f":"SUM(T43:T47)","v":0},{"$f":"SUM(U43:U47)","v":0},{"$f":"SUM(V43:V47)","v":0},{"$f":"SUM(W43:W47)","v":0},{"$f":"SUM(X43:X47)","v":0},0,0,0,0,0]

{"sheet":"3.2 Operating expenditure","index":8,"n_rows":196,"n_cols":30,"rows_kept":196,"cut":false,"hidden":false,"merged":[[8,1,8,3],[194,3,194,15],[13,3,13,15],[13,17,13,29],[182,3,182,15],[182,17,182,29],[109,3,109,15],[109,17,109,29],[160,3,160,15],[160,17,160,29],[171,3,171,15],[171,17,171,29],[12,3,12,15],[12,17,12,29],[60,3,60,15],[60,17,60,29],[61,3,61,15],[61,17,61,29],[181,3,181,15],[181,17,181,29],[108,3,108,15],[108,17,108,29],[159,3,159,15],[159,17,159,29],[170,3,170,15],[170,17,170,29]]}
[null,{"$f":"INDEX(dms_Worksheet_List,MATCH(dms_Model,dms_Model_List))","v":"RECAST HISTORICAL ECONOMIC BENCHMARKING  - CALENDAR YEARS"}]
[null,{"$f":"INDEX(dms_TradingNameFull_List,MATCH(dms_TradingName,dms_TradingName_List))","v":"Powercor Australia"}]
[null,{"$f":"dms_Header_Span","v":"2006 to 2018"}]
[null,"3.2 OPERATING EXPENDITURE"]
[]
[null,"There are THREE tables on this worksheet. Each has been grouped for ease of navigation. see the Instructions sheet on how to group or ungroup tables. "]
[]
[null,"Instructions"]
[null,"Please list current opex categories in tables 3.2.1 and 3.2.2 and provide opex data as required. Where opex categories have changed at any time during the regulatory period, list previous opex categories in the 'Historical' sub-table and provide opex data as required."]
[]
[null,"3.2.1 - OPEX CATEGORIES"]
[null,"CURRENT OPEX CATEGORIES AND COST ALLOCATIONS"]
[null,null,null,"STANDARD CONTROL SERVICES",null,null,null,null,null,null,null,null,null,null,null,null,null,"ALTERNATIVE CONTROL SERVICES"]
[null,null,null,"EXPENDITURE\n($0's)",null,null,null,null,null,null,null,null,null,null,null,null,null,"EXPENDITURE\n($0's)"]
[null,null,null,{"$f":"dms_y1","v":"2006"},{"$f":"dms_y2","v":"2007"},{"$f":"dms_y3","v":"2008"},{"$f":"dms_y4","v":"2009"},{"$f":"dms_y5","v":2010},{"$f":"dms_y6","v":2011},{"$f":"dms_y7","v":2012},{"$f":"dms_y8","v":2013},{"$f":"dms_y9","v":2014},{"$f":"dms_y10","v":2015},{"$f":"dms_y11","v":2016},{"$f":"dms_y12","v":2017},{"$f":"dms_y13","v":2018},null,{"$f":"dms_y1","v":"2006"},{"$f":"dms_y2","v":"2007"},{"$f":"dms_y3","v":"2008"},{"$f":"dms_y4","v":"2009"},{"$f":"dms_y5","v":2010},{"$f":"dms_y6","v":2011},{"$f":"dms_y7","v":2012},{"$f":"dms_y8","v":2013},{"$f":"dms_y9","v":2014},{"$f":"dms_y10","v":2015},{"$f":"dms_y11","v":2016},{"$f":"dms_y12","v":2017},{"$f":"dms_y13","v":2018}]
["DOPEX0101","Maintenance",null,null,null,null,59953462.349314474,63006109.215605199,80908519.535996243,99023509.347398371,113005597.86463028,104192876.26698875,101206741.48751071,53649985.301899999,57191414.541293517,53246353.491376176]
["DOPEX0102","Vegetation Management",null,null,null,null,0,0,0,0,0,0,0,25419370,32199734,45642382.635613292]
["DOPEX0103","Emergency",null,null,null,null,19880458.089999679,21700474.179999955,24505139.560000002,26170280.227056842,27139067.273820538,26938012.310809094,24633157.6699083,26174681,28097966.857709996,32030497.300000004]
["DOPEX0104","Overheads",null,null,null,null,52883336.126097165,46370549.63479422,36217464.68633645,47749642.26987125,49549507.230144583,45724029.407777674,66554013.337192297,94691986,98376123,97714660.333781555]
["DOPEX0105"]
["DOPEX0106"]
["DOPEX0107"]
["DOPEX0108"]
["DOPEX0109"]
["DOPEX0110"]
["DOPEX0111"]
["DOPEX0112"]
["DOPEX0113"]
["DOPEX0114"]
["DOPEX0115"]
["DOPEX0116"]
["DOPEX0117"]
["DOPEX0118"]
["DOPEX0119"]
["DOPEX0120"]
["DOPEX0121"]
["DOPEX0122"]
["DOPEX0123"]
["DOPEX0124"]
["DOPEX0125"]
["DOPEX0126"]
["DOPEX0127"]
["DOPEX0128"]
["DOPEX0129"]
["DOPEX0130"]
["DOPEX0131"]
["DOPEX0132"]
["DOPEX0133"]
["DOPEX0134"]
["DOPEX0135"]
["DOPEX0136"]
["DOPEX0137"]
["DOPEX0138"]
["DOPEX0139"]
["DOPEX0140"]
["DOPEX0141"]
["DOPEX0142"]
["DOPEX01","Total opex ",null,{"$f":"SUM(D16:D57)","v":0},0,0,132717256.56541133,131077133.03039937,141631123.78233269,172943431.84432647,189694172.36859542,{"$f":"SUM(L16:L57)","v":176854917.98557553},192393912.49461132,199936022.3019,215865238.39900351,228633893.76077104,null,{"$f":"SUM(R16:R57)","v":0},{"$f":"SUM(S16:S57)","v":0},{"$f":"SUM(T16:T57)","v":0},{"$f":"SUM(U16:U57)","v":0},{"$f":"SUM(V16:V57)","v":0},{"$f":"SUM(W16:W57)","v":0},{"$f":"SUM(X16:X57)","v":0},{"$f":"SUM(Y16:Y57)","v":0},{"$f":"SUM(Z16:Z57)","v":0},0,0,0,{"$f":"SUM(AD16:AD57)","v":0}]
[]
[null,"A: HISTORICAL OPEX CATEGORIES AND COST ALLOCATIONS"]
[null,null,null,"STANDARD CONTROL SERVICES",null,null,null,null,null,null,null,null,null,null,null,null,null,"ALTERNATIVE CONTROL SERVICES"]
[null,null,null,"EXPENDITURE\n($0's)",null,null,null,null,null,null,null,null,null,null,null,null,null,"EXPENDITURE\n($0's)"]
[null,null,null,{"$f":"dms_y1","v":"2006"},{"$f":"dms_y2","v":"2007"},{"$f":"dms_y3","v":"2008"},{"$f":"dms_y4","v":"2009"},{"$f":"dms_y5","v":2010},{"$f":"dms_y6","v":2011},{"$f":"dms_y7","v":2012},{"$f":"dms_y8","v":2013},{"$f":"dms_y9","v":2014},{"$f":"dms_y10","v":2015},{"$f":"dms_y11","v":2016},{"$f":"dms_y12","v":2017},{"$f":"dms_y13","v":2018},null,{"$f":"dms_y1","v":"2006"},{"$f":"dms_y2","v":"2007"},{"$f":"dms_y3","v":"2008"},{"$f":"dms_y4","v":"2009"},{"$f":"dms_y5","v":2010},{"$f":"dms_y6","v":2011},{"$f":"dms_y7","v":2012},{"$f":"dms_y8","v":2013},{"$f":"dms_y9","v":2014},{"$f":"dms_y10","v":2015},{"$f":"dms_y11","v":2016},{"$f":"dms_y12","v":2017},{"$f":"dms_y13","v":2018}]
["DOPEX0101"]
["DOPEX0102"]
["DOPEX0103"]
["DOPEX0104"]
["DOPEX0105"]
["DOPEX0106"]
["DOPEX0107"]
["DOPEX0108"]
["DOPEX0109"]
["DOPEX0110"]
["DOPEX0111"]
["DOPEX0112"]
["DOPEX0113"]
["DOPEX0114"]
["DOPEX0115"]
["DOPEX0116"]
["DOPEX0117"]
["DOPEX0118"]
["DOPEX0119"]
["DOPEX0120"]
["DOPEX0121"]
["DOPEX0122"]
["DOPEX0123"]
["DOPEX0124"]
["DOPEX0125"]
["DOPEX0126"]
["DOPEX0127"]
["DOPEX0128"]
["DOPEX0129"]
["DOPEX0130"]
["DOPEX0131"]
["DOPEX0132"]
["DOPEX0133"]
["DOPEX0134"]
["DOPEX0135"]
["DOPEX0136"]
["DOPEX0137"]
["DOPEX0138"]
["DOPEX0139"]
["DOPEX0140"]
["DOPEX0141"]
["DOPEX0142"]
["DOPEX01","Total opex ",null,{"$f":"SUM(D64:D105)","v":0},0,0,0,0,0,0,0,{"$f":"SUM(L64:L105)","v":0},0,0,0,0,null,{"$f":"SUM(R64:R105)","v":0},0,0,0,0,0,0,0,0,0,0,0,0]
[]
[null,"B: HISTORICAL OPEX CATEGORIES AND COST ALLOCATIONS"]
[null,null,null,"STANDARD CONTROL SERVICES",null,null,null,null,null,null,null,null,null,null,null,null,null,"ALTERNATIVE CONTROL SERVICES"]
[null,null,null,"EXPENDITURE\n($0's)",null,null,null,null,null,null,null,null,null,null,null,null,null,"EXPENDITURE\n($0's)"]
[null,null,null,{"$f":"dms_y1","v":"2006"},{"$f":"dms_y2","v":"2007"},{"$f":"dms_y3","v":"2008"},{"$f":"dms_y4","v":"2009"},{"$f":"dms_y5","v":2010},{"$f":"dms_y6","v":2011},{"$f":"dms_y7","v":2012},{"$f":"dms_y8","v":2013},{"$f":"dms_y9","v":2014},{"$f":"dms_y10","v":2015},{"$f":"dms_y11","v":2016},{"$f":"dms_y12","v":2017},{"$f":"dms_y13","v":2018},null,{"$f":"dms_y1","v":"2006"},{"$f":"dms_y2","v":"2007"},{"$f":"dms_y3","v":"2008"},{"$f":"dms_y4","v":"2009"},{"$f":"dms_y5","v":2010},{"$f":"dms_y6","v":2011},{"$f":"dms_y7","v":2012},{"$f":"dms_y8","v":2013},{"$f":"dms_y9","v":2014},{"$f":"dms_y10","v":2015},{"$f":"dms_y11","v":2016},{"$f":"dms_y12","v":2017},{"$f":"dms_y13","v":2018}]
["DOPEX0101"]
["DOPEX0102"]
["DOPEX0103"]
["DOPEX0104"]
["DOPEX0105"]
["DOPEX0106"]
["DOPEX0107"]
["DOPEX0108"]
["DOPEX0109"]
["DOPEX0110"]
["DOPEX0111"]
["DOPEX0112"]
["DOPEX0113"]
["DOPEX0114"]
["DOPEX0115"]
["DOPEX0116"]
["DOPEX0117"]
["DOPEX0118"]
["DOPEX0119"]
["DOPEX0120"]
["DOPEX0121"]
["DOPEX0122"]
["DOPEX0123"]
["DOPEX0124"]
["DOPEX0125"]
["DOPEX0126"]
["DOPEX0127"]
["DOPEX0128"]
["DOPEX0129"]
["DOPEX0130"]
["DOPEX0131"]
["DOPEX0132"]
["DOPEX0133"]
["DOPEX0134"]
["DOPEX0135"]
["DOPEX0136"]
["DOPEX0137"]
["DOPEX0138"]
["DOPEX0139"]
["DOPEX0140"]
["DOPEX0141"]
["DOPEX0142"]
["DOPEX01","Total opex ",null,{"$f":"SUM(D112:D153)","v":0},0,0,0,0,0,0,0,{"$f":"SUM(L112:L153)","v":0},0,0,0,0,null,{"$f":"SUM(R112:R153)","v":0},0,0,0,0,0,0,0,0,0,0,0,0]
[]
[]
[]
[null,"3.2.2 - OPEX CONSISTENCY"]
[null," OPEX CONSISTENCY - CURRENT COST ALLOCATION APPROACH"]
[null,null,null,"STANDARD CONTROL SERVICES",null,null,null,null,null,null,null,null,null,null,null,null,null,"ALTERNATIVE CONTROL SERVICES"]
[null,null,null,"EXPENDITURE\n($0's)",null,null,null,null,null,null,null,null,null,null,null,null,null,"EXPENDITURE\n($0's)"]
[null,null,null,{"$f":"dms_y1","v":"2006"},{"$f":"dms_y2","v":"2007"},{"$f":"dms_y3","v":"2008"},{"$f":"dms_y4","v":"2009"},{"$f":"dms_y5","v":2010},{"$f":"dms_y6","v":2011},{"$f":"dms_y7","v":2012},{"$f":"dms_y8","v":2013},{"$f":"dms_y9","v":2014},{"$f":"dms_y10","v":2015},{"$f":"dms_y11","v":2016},{"$f":"dms_y12","v":2017},{"$f":"dms_y13","v":2018},null,{"$f":"dms_y1","v":"2006"},{"$f":"dms_y2","v":"2007"},{"$f":"dms_y3","v":"2008"},{"$f":"dms_y4","v":"2009"},{"$f":"dms_y5","v":2010},{"$f":"dms_y6","v":2011},{"$f":"dms_y7","v":2012},{"$f":"dms_y8","v":2013},{"$f":"dms_y9","v":2014},{"$f":"dms_y10","v":2015},{"$f":"dms_y11","v":2016},{"$f":"dms_y12","v":2017},{"$f":"dms_y13","v":2018}]
["DOPEX0201","Opex for network services",null,null,null,null,{"$f":"G58-G165-G168","v":130060610.93114336},128203454.08242938,138361663.6988259,168926765.76981989,185124889.71551955,152790371.59711644,187954572.68627071,199544526.3019,215490602.9990035,224219393.18968639]
["DOPEX0202","Opex for metering"]
["DOPEX0203","Opex for connection services",null,null,null,null,2289999.1092679705,2519714.9979699822,2928280.8335067867,3643147.4745065765,4214281.6447425466,23431746.38845909,3959515.8083406049,0,0,4040126.1090846234]
["DOPEX0204","Opex for public lighting"]
["DOPEX0205","Opex for amounts payable for easement levy or similar direct charges on DNSP"]
["DOPEX0206","Opex for transmission connection point planning",null,null,null,null,366646.52500000002,353963.95,341179.25,373518.6,355001.00833333336,632800,479824,391496,374635.4,374374.462]
[]
[null,"OPEX CONSISTENCY - A: HISTORICAL COST ALLOCATION APPROACH"]
[null,null,null,"STANDARD CONTROL SERVICES",null,null,null,null,null,null,null,null,null,null,null,null,null,"ALTERNATIVE CONTROL SERVICES"]
[null,null,null,"EXPENDITURE\n($0's)",null,null,null,null,null,null,null,null,null,null,null,null,null,"EXPENDITURE\n($0's)"]
[null,null,null,{"$f":"dms_y1","v":"2006"},{"$f":"dms_y2","v":"2007"},{"$f":"dms_y3","v":"2008"},{"$f":"dms_y4","v":"2009"},{"$f":"dms_y5","v":2010},{"$f":"dms_y6","v":2011},{"$f":"dms_y7","v":2012},{"$f":"dms_y8","v":2013},{"$f":"dms_y9","v":2014},{"$f":"dms_y10","v":2015},{"$f":"dms_y11","v":2016},{"$f":"dms_y12","v":2017},{"$f":"dms_y13","v":2018},null,{"$f":"dms_y1","v":"2006"},{"$f":"dms_y2","v":"2007"},{"$f":"dms_y3","v":"2008"},{"$f":"dms_y4","v":"2009"},{"$f":"dms_y5","v":2010},{"$f":"dms_y6","v":2011},{"$f":"dms_y7","v":2012},{"$f":"dms_y8","v":2013},{"$f":"dms_y9","v":2014},{"$f":"dms_y10","v":2015},{"$f":"dms_y11","v":2016},{"$f":"dms_y12","v":2017},{"$f":"dms_y13","v":2018}]
["DOPEX0201","Opex for network services"]
["DOPEX0202","Opex for metering"]
["DOPEX0203","Opex for connection services"]
["DOPEX0204","Opex for public lighting"]
["DOPEX0205","Opex for amounts payable for easement levy or similar direct charges on DNSP"]
["DOPEX0206","Opex for transmission connection point planning"]
[]
[null,"OPEX CONSISTENCY - B: HISTORICAL COST ALLOCATION APPROACH"]
[null,null,null,"STANDARD CONTROL SERVICES",null,null,null,null,null,null,null,null,null,null,null,null,null,"ALTERNATIVE CONTROL SERVICES"]
[null,null,null,"EXPENDITURE\n($0's)",null,null,null,null,null,null,null,null,null,null,null,null,null,"EXPENDITURE\n($0's)"]
[null,null,null,{"$f":"dms_y1","v":"2006"},{"$f":"dms_y2","v":"2007"},{"$f":"dms_y3","v":"2008"},{"$f":"dms_y4","v":"2009"},{"$f":"dms_y5","v":2010},{"$f":"dms_y6","v":2011},{"$f":"dms_y7","v":2012},{"$f":"dms_y8","v":2013},{"$f":"dms_y9","v":2014},{"$f":"dms_y10","v":2015},{"$f":"dms_y11","v":2016},{"$f":"dms_y12","v":2017},{"$f":"dms_y13","v":2018},null,{"$f":"dms_y1","v":"2006"},{"$f":"dms_y2","v":"2007"},{"$f":"dms_y3","v":"2008"},{"$f":"dms_y4","v":"2009"},{"$f":"dms_y5","v":2010},{"$f":"dms_y6","v":2011},{"$f":"dms_y7","v":2012},{"$f":"dms_y8","v":2013},{"$f":"dms_y9","v":2014},{"$f":"dms_y10","v":2015},{"$f":"dms_y11","v":2016},{"$f":"dms_y12","v":2017},{"$f":"dms_y13","v":2018}]
["DOPEX0201","Opex for network services"]
["DOPEX0202","Opex for metering"]
["DOPEX0203","Opex for connection services"]
["DOPEX0204","Opex for public lighting"]
["DOPEX0205","Opex for amounts payable for easement levy or similar direct charges on DNSP"]
["DOPEX0206","Opex for transmission connection point planning"]
[]
[]
[]
[null,"3.2.4 - OPEX FOR HIGH VOLTAGE CUSTOMERS"]
[null,null,null,"End user costs (not standard control services)"]
["DOPEX0401","Opex for high voltage customers"]

{"sheet":"3.2.3 Provisions","index":9,"n_rows":371,"n_cols":15,"rows_kept":371,"cut":false,"hidden":false,"merged":[[9,2,9,14]]}
[null,{"$f":"INDEX(dms_Worksheet_List,MATCH(dms_Model,dms_Model_List))","v":"RECAST HISTORICAL ECONOMIC BENCHMARKING  - CALENDAR YEARS"}]
[null,{"$f":"INDEX(dms_TradingNameFull_List,MATCH(dms_TradingName,dms_TradingName_List))","v":"Powercor Australia"}]
[null,{"$f":"dms_Header_Span","v":"2006 to 2018"}]
[null,"3.2 OPERATING EXPENDITURE"]
[]
[null,"There is ONE table on this worksheet. Each Provision has been grouped for ease of navigation. see the Instructions sheet on how to group or ungroup tables. "]
[]
[null,"3.2.3 - PROVISIONS"]
[null,"For each provision report:"]
[null,null,"$0's"]
[null,null,{"$f":"dms_y1","v":"2006"},{"$f":"dms_y2","v":"2007"},{"$f":"dms_y3","v":"2008"},{"$f":"dms_y4","v":"2009"},{"$f":"dms_y5","v":2010},{"$f":"dms_y6","v":2011},{"$f":"dms_y7","v":2012},{"$f":"dms_y8","v":2013},{"$f":"dms_y9","v":2014},{"$f":"dms_y10","v":2015},{"$f":"dms_y11","v":2016},{"$f":"dms_y12","v":2017},{"$f":"dms_y13","v":2018}]
["DOPEX03A","<Provision name>"]
[null,"<Brief description of provision>"]
["DOPEX0301A","Opening balance (the carrying amount at the beginning of the period)"]
[null,"Additional provisions made in the period, including increases to existing provisions"]
["DOPEX0302A","Opex component"]
["DOPEX0303A","Capex component"]
["DOPEX0304A","Other component"]
[null,"Amounts used (that is, incurred and charged against the provision) during the period"]
["DOPEX0305A","Opex component"]
["DOPEX0306A","Capex component"]
["DOPEX0307A","Other component"]
[null,"Unused amounts reversed during the period"]
["DOPEX0308A","Opex component"]
["DOPEX0309A","Capex component"]
["DOPEX0310A","Other component"]
[null,"The increase during the period in the discounted amount arising from the passage of time and the effect of any change in the discount rate"]
["DOPEX0311A","Opex component"]
["DOPEX0312A","Capex component"]
["DOPEX0313A","Other component"]
["DOPEX0314A","Closing balance (carrying amount at the end of the period)"]
["DOPEX03B","<Provision name>"]
[null,"<Brief description of provision>"]
["DOPEX0301B","Opening balance (the carrying amount at the beginning of the period)"]
[null,"Additional provisions made in the period, including increases to existing provisions"]
["DOPEX0302B","Opex component"]
["DOPEX0303B","Capex component"]
["DOPEX0304B","Other component"]
[null,"Amounts used (that is, incurred and charged against the provision) during the period"]
["DOPEX0305B","Opex component"]
["DOPEX0306B","Capex component"]
["DOPEX0307B","Other component"]
[null,"Unused amounts reversed during the period"]
["DOPEX0308B","Opex component"]
["DOPEX0309B","Capex component"]
["DOPEX0310B","Other component"]
[null,"The increase during the period in the discounted amount arising from the passage of time and the effect of any change in the discount rate"]
["DOPEX0311B","Opex component"]
["DOPEX0312B","Capex component"]
["DOPEX0313B","Other component"]
["DOPEX0314B","Closing balance (carrying amount at the end of the period)"]
["DOPEX03C","<Provision name>"]
[null,"<Brief description of provision>"]
["DOPEX0301C","Opening balance (the carrying amount at the beginning of the period)"]
[null,"Additional provisions made in the period, including increases to existing provisions"]
["DOPEX0302C","Opex component"]
["DOPEX0303C","Capex component"]
["DOPEX0304C","Other component"]
[null,"Amounts used (that is, incurred and charged against the provision) during the period"]
["DOPEX0305C","Opex component"]
["DOPEX0306C","Capex component"]
["DOPEX0307C","Other component"]
[null,"Unused amounts reversed during the period"]
["DOPEX0308C","Opex component"]
["DOPEX0309C","Capex component"]
["DOPEX0310C","Other component"]
[null,"The increase during the period in the discounted amount arising from the passage of time and the effect of any change in the discount rate"]
["DOPEX0311C","Opex component"]
["DOPEX0312C","Capex component"]
["DOPEX0313C","Other component"]
["DOPEX0314C","Closing balance (carrying amount at the end of the period)"]
["DOPEX03D","<Provision name>"]
[null,"<Brief description of provision>"]
["DOPEX0301D","Opening balance (the carrying amount at the beginning of the period)"]
[null,"Additional provisions made in the period, including increases to existing provisions"]
["DOPEX0302D","Opex component"]
["DOPEX0303D","Capex component"]
["DOPEX0304D","Other component"]
[null,"Amounts used (that is, incurred and charged against the provision) during the period"]
["DOPEX0305D","Opex component"]
["DOPEX0306D","Capex component"]
["DOPEX0307D","Other component"]
[null,"Unused amounts reversed during the period"]
["DOPEX0308D","Opex component"]
["DOPEX0309D","Capex component"]
["DOPEX0310D","Other component"]
[null,"The increase during the period in the discounted amount arising from the passage of time and the effect of any change in the discount rate"]
["DOPEX0311D","Opex component"]
["DOPEX0312D","Capex component"]
["DOPEX0313D","Other component"]
["DOPEX0314D","Closing balance (carrying amount at the end of the period)"]
["DOPEX03E","<Provision name>"]
[null,"<Brief description of provision>"]
["DOPEX0301E","Opening balance (the carrying amount at the beginning of the period)"]
[null,"Additional provisions made in the period, including increases to existing provisions"]
["DOPEX0302E","Opex component"]
["DOPEX0303E","Capex component"]
["DOPEX0304E","Other component"]
[null,"Amounts used (that is, incurred and charged against the provision) during the period"]
["DOPEX0305E","Opex component"]
["DOPEX0306E","Capex component"]
["DOPEX0307E","Other component"]
[null,"Unused amounts reversed during the period"]
["DOPEX0308E","Opex component"]
["DOPEX0309E","Capex component"]
["DOPEX0310E","Other component"]
[null,"The increase during the period in the discounted amount arising from the passage of time and the effect of any change in the discount rate"]
["DOPEX0311E","Opex component"]
["DOPEX0312E","Capex component"]
["DOPEX0313E","Other component"]
["DOPEX0314E","Closing balance (carrying amount at the end of the period)"]
["DOPEX03F","<Provision name>"]
[null,"<Brief description of provision>"]
["DOPEX0301F","Opening balance (the carrying amount at the beginning of the period)"]
[null,"Additional provisions made in the period, including increases to existing provisions"]
["DOPEX0302F","Opex component"]
["DOPEX0303F","Capex component"]
["DOPEX0304F","Other component"]
[null,"Amounts used (that is, incurred and charged against the provision) during the period"]
["DOPEX0305F","Opex component"]
["DOPEX0306F","Capex component"]
["DOPEX0307F","Other component"]
[null,"Unused amounts reversed during the period"]
["DOPEX0308F","Opex component"]
["DOPEX0309F","Capex component"]
["DOPEX0310F","Other component"]
[null,"The increase during the period in the discounted amount arising from the passage of time and the effect of any change in the discount rate"]
["DOPEX0311F","Opex component"]
["DOPEX0312F","Capex component"]
["DOPEX0313F","Other component"]
["DOPEX0314F","Closing balance (carrying amount at the end of the period)"]
["DOPEX03G","<Provision name>"]
[null,"<Brief description of provision>"]
["DOPEX0301G","Opening balance (the carrying amount at the beginning of the period)"]
[null,"Additional provisions made in the period, including increases to existing provisions"]
["DOPEX0302G","Opex component"]
["DOPEX0303G","Capex component"]
["DOPEX0304G","Other component"]
[null,"Amounts used (that is, incurred and charged against the provision) during the period"]
["DOPEX0305G","Opex component"]
["DOPEX0306G","Capex component"]
["DOPEX0307G","Other component"]
[null,"Unused amounts reversed during the period"]
["DOPEX0308G","Opex component"]
["DOPEX0309G","Capex component"]
["DOPEX0310G","Other component"]
[null,"The increase during the period in the discounted amount arising from the passage of time and the effect of any change in the discount rate"]
["DOPEX0311G","Opex component"]
["DOPEX0312G","Capex component"]
["DOPEX0313G","Other component"]
["DOPEX0314G","Closing balance (carrying amount at the end of the period)"]
["DOPEX03H","<Provision name>"]
[null,"<Brief description of provision>"]
["DOPEX0301H","Opening balance (the carrying amount at the beginning of the period)"]
[null,"Additional provisions made in the period, including increases to existing provisions"]
["DOPEX0302H","Opex component"]
["DOPEX0303H","Capex component"]
["DOPEX0304H","Other component"]
[null,"Amounts used (that is, incurred and charged against the provision) during the period"]
["DOPEX0305H","Opex component"]
["DOPEX0306H","Capex component"]
["DOPEX0307H","Other component"]
[null,"Unused amounts reversed during the period"]
["DOPEX0308H","Opex component"]
["DOPEX0309H","Capex component"]
["DOPEX0310H","Other component"]
[null,"The increase during the period in the discounted amount arising from the passage of time and the effect of any change in the discount rate"]
["DOPEX0311H","Opex component"]
["DOPEX0312H","Capex component"]
["DOPEX0313H","Other component"]
["DOPEX0314H","Closing balance (carrying amount at the end of the period)"]
["DOPEX03I","<Provision name>"]
[null,"<Brief description of provision>"]
["DOPEX0301I","Opening balance (the carrying amount at the beginning of the period)"]
[null,"Additional provisions made in the period, including increases to existing provisions"]
["DOPEX0302I","Opex component"]
["DOPEX0303I","Capex component"]
["DOPEX0304I","Other component"]
[null,"Amounts used (that is, incurred and charged against the provision) during the period"]
["DOPEX0305I","Opex component"]
["DOPEX0306I","Capex component"]
["DOPEX0307I","Other component"]
[null,"Unused amounts reversed during the period"]
["DOPEX0308I","Opex component"]
["DOPEX0309I","Capex component"]
["DOPEX0310I","Other component"]
[null,"The increase during the period in the discounted amount arising from the passage of time and the effect of any change in the discount rate"]
["DOPEX0311I","Opex component"]
["DOPEX0312I","Capex component"]
["DOPEX0313I","Other component"]
["DOPEX0314I","Closing balance (carrying amount at the end of the period)"]
["DOPEX03J","<Provision name>"]
[null,"<Brief description of provision>"]
["DOPEX0301J","Opening balance (the carrying amount at the beginning of the period)"]
[null,"Additional provisions made in the period, including increases to existing provisions"]
["DOPEX0302J","Opex component"]
["DOPEX0303J","Capex component"]
["DOPEX0304J","Other component"]
[null,"Amounts used (that is, incurred and charged against the provision) during the period"]
["DOPEX0305J","Opex component"]
["DOPEX0306J","Capex component"]
["DOPEX0307J","Other component"]
[null,"Unused amounts reversed during the period"]
["DOPEX0308J","Opex component"]
["DOPEX0309J","Capex component"]
["DOPEX0310J","Other component"]
[null,"The increase during the period in the discounted amount arising from the passage of time and the effect of any change in the discount rate"]
["DOPEX0311J","Opex component"]
["DOPEX0312J","Capex component"]
["DOPEX0313J","Other component"]
["DOPEX0314J","Closing balance (carrying amount at the end of the period)"]
["DOPEX03K","<Provision name>"]
[null,"<Brief description of provision>"]
["DOPEX0301K","Opening balance (the carrying amount at the beginning of the period)"]
[null,"Additional provisions made in the period, including increases to existing provisions"]
["DOPEX0302K","Opex component"]
["DOPEX0303K","Capex component"]
["DOPEX0304K","Other component"]
[null,"Amounts used (that is, incurred and charged against the provision) during the period"]
["DOPEX0305K","Opex component"]
["DOPEX0306K","Capex component"]
["DOPEX0307K","Other component"]
[null,"Unused amounts reversed during the period"]
["DOPEX0308K","Opex component"]
["DOPEX0309K","Capex component"]
["DOPEX0310K","Other component"]
[null,"The increase during the period in the discounted amount arising from the passage of time and the effect of any change in the discount rate"]
["DOPEX0311K","Opex component"]
["DOPEX0312K","Capex component"]
["DOPEX0313K","Other component"]
["DOPEX0314K","Closing balance (carrying amount at the end of the period)"]
["DOPEX03L","<Provision name>"]
[null,"<Brief description of provision>"]
["DOPEX0301L","Opening balance (the carrying amount at the beginning of the period)"]
[null,"Additional provisions made in the period, including increases to existing provisions"]
["DOPEX0302L","Opex component"]
["DOPEX0303L","Capex component"]
["DOPEX0304L","Other component"]
[null,"Amounts used (that is, incurred and charged against the provision) during the period"]
["DOPEX0305L","Opex component"]
["DOPEX0306L","Capex component"]
["DOPEX0307L","Other component"]
[null,"Unused amounts reversed during the period"]
["DOPEX0308L","Opex component"]
["DOPEX0309L","Capex component"]
["DOPEX0310L","Other component"]
[null,"The increase during the period in the discounted amount arising from the passage of time and the effect of any change in the discount rate"]
["DOPEX0311L","Opex component"]
["DOPEX0312L","Capex component"]
["DOPEX0313L","Other component"]
["DOPEX0314L","Closing balance (carrying amount at the end of the period)"]
["DOPEX03M","<Provision name>"]
[null,"<Brief description of provision>"]
["DOPEX0301M","Opening balance (the carrying amount at the beginning of the period)"]
[null,"Additional provisions made in the period, including increases to existing provisions"]
["DOPEX0302M","Opex component"]
["DOPEX0303M","Capex component"]
["DOPEX0304M","Other component"]
[null,"Amounts used (that is, incurred and charged against the provision) during the period"]
["DOPEX0305M","Opex component"]
["DOPEX0306M","Capex component"]
["DOPEX0307M","Other component"]
[null,"Unused amounts reversed during the period"]
["DOPEX0308M","Opex component"]
["DOPEX0309M","Capex component"]
["DOPEX0310M","Other component"]
[null,"The increase during the period in the discounted amount arising from the passage of time and the effect of any change in the discount rate"]
["DOPEX0311M","Opex component"]
["DOPEX0312M","Capex component"]
["DOPEX0313M","Other component"]
["DOPEX0314M","Closing balance (carrying amount at the end of the period)"]
["DOPEX03N","<Provision name>"]
[null,"<Brief description of provision>"]
["DOPEX0301N","Opening balance (the carrying amount at the beginning of the period)"]
[null,"Additional provisions made in the period, including increases to existing provisions"]
["DOPEX0302N","Opex component"]
["DOPEX0303N","Capex component"]
["DOPEX0304N","Other component"]
[null,"Amounts used (that is, incurred and charged against the provision) during the period"]
["DOPEX0305N","Opex component"]
["DOPEX0306N","Capex component"]
["DOPEX0307N","Other component"]
[null,"Unused amounts reversed during the period"]
["DOPEX0308N","Opex component"]
["DOPEX0309N","Capex component"]
["DOPEX0310N","Other component"]
[null,"The increase during the period in the discounted amount arising from the passage of time and the effect of any change in the discount rate"]
["DOPEX0311N","Opex component"]
["DOPEX0312N","Capex component"]
["DOPEX0313N","Other component"]
["DOPEX0314N","Closing balance (carrying amount at the end of the period)"]
["DOPEX03O","<Provision name>"]
[null,"<Brief description of provision>"]
["DOPEX0301O","Opening balance (the carrying amount at the beginning of the period)"]
[null,"Additional provisions made in the period, including increases to existing provisions"]
["DOPEX0302O","Opex component"]
["DOPEX0303O","Capex component"]
["DOPEX0304O","Other component"]
[null,"Amounts used (that is, incurred and charged against the provision) during the period"]
["DOPEX0305O","Opex component"]
["DOPEX0306O","Capex component"]
["DOPEX0307O","Other component"]
[null,"Unused amounts reversed during the period"]
["DOPEX0308O","Opex component"]
["DOPEX0309O","Capex component"]
["DOPEX0310O","Other component"]
[null,"The increase during the period in the discounted amount arising from the passage of time and the effect of any change in the discount rate"]
["DOPEX0311O","Opex component"]
["DOPEX0312O","Capex component"]
["DOPEX0313O","Other component"]
["DOPEX0314O","Closing balance (carrying amount at the end of the period)"]
["DOPEX03P","<Provision name>"]
[null,"<Brief description of provision>"]
["DOPEX0301P","Opening balance (the carrying amount at the beginning of the period)"]
[null,"Additional provisions made in the period, including increases to existing provisions"]
["DOPEX0302P","Opex component"]
["DOPEX0303P","Capex component"]
["DOPEX0304P","Other component"]
[null,"Amounts used (that is, incurred and charged against the provision) during the period"]
["DOPEX0305P","Opex component"]
["DOPEX0306P","Capex component"]
["DOPEX0307P","Other component"]
[null,"Unused amounts reversed during the period"]
["DOPEX0308P","Opex component"]
["DOPEX0309P","Capex component"]
["DOPEX0310P","Other component"]
[null,"The increase during the period in the discounted amount arising from the passage of time and the effect of any change in the discount rate"]
["DOPEX0311P","Opex component"]
["DOPEX0312P","Capex component"]
["DOPEX0313P","Other component"]
["DOPEX0314P","Closing balance (carrying amount at the end of the period)"]
["DOPEX03Q","<Provision name>"]
[null,"<Brief description of provision>"]
["DOPEX0301Q","Opening balance (the carrying amount at the beginning of the period)"]
[null,"Additional provisions made in the period, including increases to existing provisions"]
["DOPEX0302Q","Opex component"]
["DOPEX0303Q","Capex component"]
["DOPEX0304Q","Other component"]
[null,"Amounts used (that is, incurred and charged against the provision) during the period"]
["DOPEX0305Q","Opex component"]
["DOPEX0306Q","Capex component"]
["DOPEX0307Q","Other component"]
[null,"Unused amounts reversed during the period"]
["DOPEX0308Q","Opex component"]
["DOPEX0309Q","Capex component"]
["DOPEX0310Q","Other component"]
[null,"The increase during the period in the discounted amount arising from the passage of time and the effect of any change in the discount rate"]
["DOPEX0311Q","Opex component"]
["DOPEX0312Q","Capex component"]
["DOPEX0313Q","Other component"]
["DOPEX0314Q","Closing balance (carrying amount at the end of the period)"]
["DOPEX03R","<Provision name>"]
[null,"<Brief description of provision>"]
["DOPEX0301R","Opening balance (the carrying amount at the beginning of the period)"]
[null,"Additional provisions made in the period, including increases to existing provisions"]
["DOPEX0302R","Opex component"]
["DOPEX0303R","Capex component"]
["DOPEX0304R","Other component"]
[null,"Amounts used (that is, incurred and charged against the provision) during the period"]
["DOPEX0305R","Opex component"]
["DOPEX0306R","Capex component"]
["DOPEX0307R","Other component"]
[null,"Unused amounts reversed during the period"]
["DOPEX0308R","Opex component"]
["DOPEX0309R","Capex component"]
["DOPEX0310R","Other component"]
[null,"The increase during the period in the discounted amount arising from the passage of time and the effect of any change in the discount rate"]
["DOPEX0311R","Opex component"]
["DOPEX0312R","Capex component"]
["DOPEX0313R","Other component"]
["DOPEX0314R","Closing balance (carrying amount at the end of the period)"]

{"sheet":"3.3 Assets (RAB)","index":10,"n_rows":139,"n_cols":43,"rows_kept":139,"cut":false,"hidden":false,"merged":[[115,2,115,14],[115,16,115,28],[115,30,115,42],[21,16,21,28],[21,30,21,42],[22,2,22,14],[22,16,22,28],[22,30,22,42],[8,2,8,14],[9,2,9,14],[116,2,116,14],[8,30,8,42],[9,30,9,42],[116,30,116,42],[8,16,8,28],[9,16,9,28],[116,16,116,28],[98,2,98,14],[98,16,98,28],[98,30,98,42],[99,2,99,14],[99,16,99,28],[99,30,99,42],[21,2,21,14]]}
[null,{"$f":"INDEX(dms_Worksheet_List,MATCH(dms_Model,dms_Model_List))","v":"RECAST HISTORICAL ECONOMIC BENCHMARKING  - CALENDAR YEARS"}]
[null,{"$f":"INDEX(dms_TradingNameFull_List,MATCH(dms_TradingName,dms_TradingName_List))","v":"Powercor Australia"}]
[null,{"$f":"dms_Header_Span","v":"2006 to 2018"}]
[null,"3.3 ASSETS"]
[]
[null,"There are FOUR tables on this worksheet. Both ROWS and COLUMNS in each have been  grouped (and sub-grouped) for ease of navigation. see the Instructions sheet on how to group or ungroup tables. "]
[]
[null,"3.3.1 - REGULATORY ASSET BASE VALUES"]
[null,null,"Network services",null,null,null,null,null,null,null,null,null,null,null,null,null,"Standard control services",null,null,null,null,null,null,null,null,null,null,null,null,null,"Alternative control services"]
[null,null,"$0's, Nominal",null,null,null,null,null,null,null,null,null,null,null,null,null,"$0's, Nominal",null,null,null,null,null,null,null,null,null,null,null,null,null,"$0's, Nominal"]
[null,null,{"$f":"dms_y1","v":"2006"},{"$f":"dms_y2","v":"2007"},{"$f":"dms_y3","v":"2008"},{"$f":"dms_y4","v":"2009"},{"$f":"dms_y5","v":2010},{"$f":"dms_y6","v":2011},{"$f":"dms_y7","v":2012},{"$f":"dms_y8","v":2013},{"$f":"dms_y9","v":2014},{"$f":"dms_y10","v":2015},{"$f":"dms_y11","v":2016},{"$f":"dms_y12","v":2017},{"$f":"dms_y13","v":2018},null,{"$f":"dms_y1","v":"2006"},{"$f":"dms_y2","v":"2007"},{"$f":"dms_y3","v":"2008"},{"$f":"dms_y4","v":"2009"},{"$f":"dms_y5","v":2010},{"$f":"dms_y6","v":2011},{"$f":"dms_y7","v":2012},{"$f":"dms_y8","v":2013},{"$f":"dms_y9","v":2014},{"$f":"dms_y10","v":2015},{"$f":"dms_y11","v":2016},{"$f":"dms_y12","v":2017},{"$f":"dms_y13","v":2018},null,{"$f":"dms_y1","v":"2006"},{"$f":"dms_y2","v":"2007"},{"$f":"dms_y3","v":"2008"},{"$f":"dms_y4","v":"2009"},{"$f":"dms_y5","v":2010},{"$f":"dms_y6","v":2011},{"$f":"dms_y7","v":2012},{"$f":"dms_y8","v":2013},{"$f":"dms_y9","v":2014},{"$f":"dms_y10","v":2015},{"$f":"dms_y11","v":2016},{"$f":"dms_y12","v":2017},{"$f":"dms_y13","v":2018}]
[null,"For total asset base:"]
["DRAB0101","Opening value",null,{"$f":"C18","v":0},{"$f":"D18","v":0},0,0,0,0,0,0,0,0,0,{"$f":"M18","v":0},null,null,{"$f":"Q18","v":0},{"$f":"R18","v":0},0,0,0,0,0,0,0,{"$f":"Z18","v":0},{"$f":"AA18","v":0},{"$f":"AB18","v":0},null,null,{"$f":"AE18","v":0},{"$f":"AF18","v":0},0,0,0,0,0,0,0,0,{"$f":"AO18","v":0},{"$f":"AP18","v":0}]
["DRAB0102","Inflation addition"]
["DRAB0103","Straight line depreciation"]
["DRAB0105","Actual additions (recognised in RAB)"]
["DRAB0106","Disposals "]
["DRAB0107","Closing value",{"$f":"SUM(C13:C17)","v":0},0,0,0,0,0,0,{"$f":"SUM(J13:J17)","v":0},0,0,0,{"$f":"SUM(N13:N17)","v":0},0,null,{"$f":"SUM(Q13:Q17)","v":0},0,0,0,0,0,0,0,0,null,null,null,null,null,{"$f":"SUM(AE13:AE17)","v":0},0,0,0,0,0,0,0,0,0,0,0,0]
[]
[]
[null,"3.3.2 - ASSET VALUE ROLL FORWARD"]
[null,null,"Network services",null,null,null,null,null,null,null,null,null,null,null,null,null,"Standard control services",null,null,null,null,null,null,null,null,null,null,null,null,null,"Alternative control services"]
[null,null,"$0's, Nominal",null,null,null,null,null,null,null,null,null,null,null,null,null,"$0's, Nominal",null,null,null,null,null,null,null,null,null,null,null,null,null,"$0's, Nominal"]
[null,null,{"$f":"dms_y1","v":"2006"},{"$f":"dms_y2","v":"2007"},{"$f":"dms_y3","v":"2008"},{"$f":"dms_y4","v":"2009"},{"$f":"dms_y5","v":2010},{"$f":"dms_y6","v":2011},{"$f":"dms_y7","v":2012},{"$f":"dms_y8","v":2013},{"$f":"dms_y9","v":2014},{"$f":"dms_y10","v":2015},{"$f":"dms_y11","v":2016},{"$f":"dms_y12","v":2017},{"$f":"dms_y13","v":2018},null,{"$f":"dms_y1","v":"2006"},{"$f":"dms_y2","v":"2007"},{"$f":"dms_y3","v":"2008"},{"$f":"dms_y4","v":"2009"},{"$f":"dms_y5","v":2010},{"$f":"dms_y6","v":2011},{"$f":"dms_y7","v":2012},{"$f":"dms_y8","v":2013},{"$f":"dms_y9","v":2014},{"$f":"dms_y10","v":2015},{"$f":"dms_y11","v":2016},{"$f":"dms_y12","v":2017},{"$f":"dms_y13","v":2018},null,{"$f":"dms_y1","v":"2006"},{"$f":"dms_y2","v":"2007"},{"$f":"dms_y3","v":"2008"},{"$f":"dms_y4","v":"2009"},{"$f":"dms_y5","v":2010},{"$f":"dms_y6","v":2011},{"$f":"dms_y7","v":2012},{"$f":"dms_y8","v":2013},{"$f":"dms_y9","v":2014},{"$f":"dms_y10","v":2015},{"$f":"dms_y11","v":2016},{"$f":"dms_y12","v":2017},{"$f":"dms_y13","v":2018}]
[null,"For overhead network assets less than 33kV"]
["DRAB0201","Opening value",null,{"$f":"C31","v":0},{"$f":"D31","v":0},0,0,0,0,0,0,0,0,0,{"$f":"M31","v":0},null,null,{"$f":"Q31","v":0},{"$f":"R31","v":0},0,0,0,0,0,0,0,0,{"$f":"AA31","v":0},{"$f":"AB31","v":0},null,null,{"$f":"AE31","v":0},{"$f":"AF31","v":0},0,0,0,0,0,0,0,0,{"$f":"AO31","v":0},{"$f":"AP31","v":0}]
["DRAB0202","Inflation addition"]
["DRAB0203","Straight line depreciation"]
["DRAB0205","Actual additions (recognised in RAB)"]
["DRAB0206","Disposals "]
["DRAB0207","Closing value",{"$f":"SUM(C26:C30)","v":0},0,0,0,0,0,0,{"$f":"SUM(J26:J30)","v":0},0,0,0,{"$f":"SUM(N26:N30)","v":0},0,null,{"$f":"SUM(Q26:Q30)","v":0},0,0,0,0,0,0,0,0,0,0,0,0,null,{"$f":"SUM(AE26:AE30)","v":0},0,0,0,0,0,0,0,0,0,0,0,0]
[null,"For underground network assets less than 33kV"]
["DRAB0301","Opening value",null,{"$f":"C38","v":0},{"$f":"D38","v":0},0,0,0,0,0,0,0,0,0,{"$f":"M38","v":0},null,null,{"$f":"Q38","v":0},{"$f":"R38","v":0},0,0,0,0,0,0,0,0,{"$f":"AA38","v":0},{"$f":"AB38","v":0},null,null,{"$f":"AE38","v":0},{"$f":"AF38","v":0},0,0,0,0,0,0,0,0,{"$f":"AO38","v":0},{"$f":"AP38","v":0}]
["DRAB0302","Inflation addition"]
["DRAB0303","Straight line depreciation"]
["DRAB0305","Actual additions (recognised in RAB)"]
["DRAB0306","Disposals "]
["DRAB0307","Closing value",{"$f":"SUM(C33:C37)","v":0},0,0,0,0,0,0,{"$f":"SUM(J33:J37)","v":0},0,0,0,{"$f":"SUM(N33:N37)","v":0},0,null,{"$f":"SUM(Q33:Q37)","v":0},0,0,0,0,0,0,0,0,0,0,0,0,null,{"$f":"SUM(AE33:AE37)","v":0},0,0,0,0,0,0,0,0,0,0,0,0]
[null,"For distribution substations and transformers"]
["DRAB0401","Opening value",null,{"$f":"C45","v":0},{"$f":"D45","v":0},0,0,0,0,0,0,0,0,0,{"$f":"M45","v":0},null,null,{"$f":"Q45","v":0},{"$f":"R45","v":0},0,0,0,0,0,0,0,0,{"$f":"AA45","v":0},{"$f":"AB45","v":0},null,null,{"$f":"AE45","v":0},{"$f":"AF45","v":0},0,0,0,0,0,0,0,0,{"$f":"AO45","v":0},{"$f":"AP45","v":0}]
["DRAB0402","Inflation addition"]
["DRAB0403","Straight line depreciation"]
["DRAB0405","Actual additions (recognised in RAB)"]
["DRAB0406","Disposals "]
["DRAB0407","Closing value",{"$f":"SUM(C40:C44)","v":0},0,0,0,0,0,0,{"$f":"SUM(J40:J44)","v":0},0,0,0,{"$f":"SUM(N40:N44)","v":0},0,null,{"$f":"SUM(Q40:Q44)","v":0},0,0,0,0,0,0,0,0,0,0,0,0,null,{"$f":"SUM(AE40:AE44)","v":0},0,0,0,0,0,0,0,0,0,0,0,0]
[null,"For overhead network assets 33kV and above"]
["DRAB0501","Opening value",null,{"$f":"C52","v":0},{"$f":"D52","v":0},0,0,0,0,0,0,0,0,0,{"$f":"M52","v":0},null,null,{"$f":"Q52","v":0},{"$f":"R52","v":0},0,0,0,0,0,0,0,0,{"$f":"AA52","v":0},{"$f":"AB52","v":0},null,null,{"$f":"AE52","v":0},{"$f":"AF52","v":0},0,0,0,0,0,0,0,0,{"$f":"AO52","v":0},{"$f":"AP52","v":0}]
["DRAB0502","Inflation addition"]
["DRAB0503","Straight line depreciation"]
["DRAB0505","Actual additions (recognised in RAB)"]
["DRAB0506","Disposals "]
["DRAB0507","Closing value",{"$f":"SUM(C47:C51)","v":0},0,0,0,0,0,0,{"$f":"SUM(J47:J51)","v":0},0,0,0,{"$f":"SUM(N47:N51)","v":0},0,null,{"$f":"SUM(Q47:Q51)","v":0},0,0,0,0,0,0,0,0,0,0,0,0,null,{"$f":"SUM(AE47:AE51)","v":0},0,0,0,0,0,0,0,0,0,0,0,0]
[null,"For underground network assets 33kV and above"]
["DRAB0601","Opening value",null,{"$f":"C59","v":0},{"$f":"D59","v":0},0,0,0,0,0,0,0,0,0,{"$f":"M59","v":0},null,null,{"$f":"Q59","v":0},{"$f":"R59","v":0},0,0,0,0,0,0,0,0,{"$f":"AA59","v":0},{"$f":"AB59","v":0},null,null,{"$f":"AE59","v":0},{"$f":"AF59","v":0},0,0,0,0,0,0,0,0,{"$f":"AO59","v":0},{"$f":"AP59","v":0}]
["DRAB0602","Inflation addition"]
["DRAB0603","Straight line depreciation"]
["DRAB0605","Actual additions (recognised in RAB)"]
["DRAB0606","Disposals "]
["DRAB0607","Closing value",{"$f":"SUM(C54:C58)","v":0},0,0,0,0,0,0,{"$f":"SUM(J54:J58)","v":0},0,0,0,{"$f":"SUM(N54:N58)","v":0},0,null,{"$f":"SUM(Q54:Q58)","v":0},0,0,0,0,0,0,0,0,0,0,0,0,null,{"$f":"SUM(AE54:AE58)","v":0},0,0,0,0,0,0,0,0,0,0,0,0]
[null,"Zone substations and transformers"]
["DRAB0701","Opening value",null,{"$f":"C66","v":0},{"$f":"D66","v":0},0,0,0,0,0,0,0,0,0,{"$f":"M66","v":0},null,null,{"$f":"Q66","v":0},{"$f":"R66","v":0},0,0,0,0,0,0,0,0,{"$f":"AA66","v":0},{"$f":"AB66","v":0},null,null,{"$f":"AE66","v":0},{"$f":"AF66","v":0},0,0,0,0,0,0,0,0,{"$f":"AO66","v":0},{"$f":"AP66","v":0}]
["DRAB0702","Inflation addition"]
["DRAB0703","Straight line depreciation"]
["DRAB0705","Actual additions (recognised in RAB)"]
["DRAB0706","Disposals "]
["DRAB0707","Closing value",{"$f":"SUM(C61:C65)","v":0},0,0,0,0,0,0,{"$f":"SUM(J61:J65)","v":0},0,0,0,{"$f":"SUM(N61:N65)","v":0},0,null,{"$f":"SUM(Q61:Q65)","v":0},0,0,0,0,0,0,0,0,null,null,null,null,null,{"$f":"SUM(AE61:AE65)","v":0},0,0,0,0,0,0,0,0,0,0,0,0]
[null,"For easements"]
["DRAB0801","Opening value",null,{"$f":"C72","v":0},{"$f":"D72","v":0},0,0,0,0,0,0,0,0,0,0,null,null,{"$f":"Q72","v":0},0,0,0,0,0,0,0,0,0,0,0,null,null,{"$f":"AE72","v":0},0,0,0,0,0,0,0,0,0,0,0]
["DRAB0802","Inflation addition"]
["DRAB0805","Actual additions (recognised in RAB)"]
["DRAB0806","Disposals "]
["DRAB0807","Closing value",{"$f":"SUM(C68:C71)","v":0},0,0,0,0,0,0,{"$f":"SUM(J68:J71)","v":0},0,0,0,{"$f":"SUM(N68:N71)","v":0},0,null,{"$f":"SUM(Q68:Q71)","v":0},0,0,0,0,0,0,0,0,0,0,0,0,null,{"$f":"SUM(AE68:AE71)","v":0},0,0,0,0,0,0,0,0,0,0,0,0]
[null,"For meters"]
["DRAB0901","Opening value",null,{"$f":"C79","v":0},{"$f":"D79","v":0},0,0,0,0,0,0,0,0,0,{"$f":"M79","v":0},null,null,{"$f":"Q79","v":0},{"$f":"R79","v":0},0,0,0,0,0,0,0,0,{"$f":"AA79","v":0},{"$f":"AB79","v":0},null,null,{"$f":"AE79","v":0},{"$f":"AF79","v":0},0,0,0,0,0,0,0,0,{"$f":"AO79","v":0},{"$f":"AP79","v":0}]
["DRAB0902","Inflation addition"]
["DRAB0903","Straight line depreciation"]
["DRAB0905","Actual additions (recognised in RAB)"]
["DRAB0906","Disposals "]
["DRAB0907","Closing value",{"$f":"SUM(C74:C78)","v":0},0,0,0,0,0,0,{"$f":"SUM(J74:J78)","v":0},0,0,0,{"$f":"SUM(N74:N78)","v":0},0,null,{"$f":"SUM(Q74:Q78)","v":0},0,0,0,0,0,0,0,0,0,0,0,0,null,{"$f":"SUM(AE74:AE78)","v":0},0,0,0,0,0,0,0,0,0,0,0,0]
[null,"For “other” asset items with long lives"]
["DRAB1001","Opening value",null,{"$f":"C86","v":0},{"$f":"D86","v":0},0,0,0,0,0,0,0,0,0,{"$f":"M86","v":0},null,null,{"$f":"Q86","v":0},{"$f":"R86","v":0},0,0,0,0,0,0,0,0,{"$f":"AA86","v":0},{"$f":"AB86","v":0},null,null,{"$f":"AE86","v":0},{"$f":"AF86","v":0},0,0,0,0,0,0,0,0,{"$f":"AO86","v":0},{"$f":"AP86","v":0}]
["DRAB1002","Inflation addition"]
["DRAB1003","Straight line depreciation"]
["DRAB1005","Actual additions (recognised in RAB)"]
["DRAB1006","Disposals "]
["DRAB1007","Closing value",{"$f":"SUM(C81:C85)","v":0},0,0,0,0,0,0,{"$f":"SUM(J81:J85)","v":0},0,0,0,{"$f":"SUM(N81:N85)","v":0},0,null,{"$f":"SUM(Q81:Q85)","v":0},0,0,0,0,0,0,0,0,0,0,0,0,null,{"$f":"SUM(AE81:AE85)","v":0},0,0,0,0,0,0,0,0,0,0,0,0]
[null,"For “other” asset items with short lives"]
["DRAB1101","Opening value",null,{"$f":"C93","v":0},{"$f":"D93","v":0},0,0,0,0,0,0,0,0,0,{"$f":"M93","v":0},null,null,{"$f":"Q93","v":0},{"$f":"R93","v":0},0,0,0,0,0,0,0,0,{"$f":"AA93","v":0},{"$f":"AB93","v":0},null,null,{"$f":"AE93","v":0},{"$f":"AF93","v":0},0,0,0,0,0,0,0,0,{"$f":"AO93","v":0},{"$f":"AP93","v":0}]
["DRAB1102","Inflation addition"]
["DRAB1103","Straight line depreciation"]
["DRAB1105","Actual additions (recognised in RAB)"]
["DRAB1106","Disposals "]
["DRAB1107","Closing value",{"$f":"SUM(C88:C92)","v":0},0,0,0,0,0,0,{"$f":"SUM(J88:J92)","v":0},0,0,0,{"$f":"SUM(N88:N92)","v":0},0,null,{"$f":"SUM(Q88:Q92)","v":0},0,0,0,0,0,0,0,0,0,0,0,0,null,{"$f":"SUM(AE88:AE92)","v":0},0,0,0,0,0,0,0,0,0,0,0,0]
[]
[]
[]
[]
[null,"3.3.3 - TOTAL DISAGGREGATED RAB ASSET VALUES"]
[null,null,"Network services",null,null,null,null,null,null,null,null,null,null,null,null,null,"Standard control services",null,null,null,null,null,null,null,null,null,null,null,null,null,"Alternative control services"]
[null,null,"$0's, Nominal",null,null,null,null,null,null,null,null,null,null,null,null,null,"$0's, Nominal",null,null,null,null,null,null,null,null,null,null,null,null,null,"$0's, Nominal"]
[null,null,{"$f":"dms_y1","v":"2006"},{"$f":"dms_y2","v":"2007"},{"$f":"dms_y3","v":"2008"},{"$f":"dms_y4","v":"2009"},{"$f":"dms_y5","v":2010},{"$f":"dms_y6","v":2011},{"$f":"dms_y7","v":2012},{"$f":"dms_y8","v":2013},{"$f":"dms_y9","v":2014},{"$f":"dms_y10","v":2015},{"$f":"dms_y11","v":2016},{"$f":"dms_y12","v":2017},{"$f":"dms_y13","v":2018},null,{"$f":"dms_y1","v":"2006"},{"$f":"dms_y2","v":"2007"},{"$f":"dms_y3","v":"2008"},{"$f":"dms_y4","v":"2009"},{"$f":"dms_y5","v":2010},{"$f":"dms_y6","v":2011},{"$f":"dms_y7","v":2012},{"$f":"dms_y8","v":2013},{"$f":"dms_y9","v":2014},{"$f":"dms_y10","v":2015},{"$f":"dms_y11","v":2016},{"$f":"dms_y12","v":2017},{"$f":"dms_y13","v":2018},null,{"$f":"dms_y1","v":"2006"},{"$f":"dms_y2","v":"2007"},{"$f":"dms_y3","v":"2008"},{"$f":"dms_y4","v":"2009"},{"$f":"dms_y5","v":2010},{"$f":"dms_y6","v":2011},{"$f":"dms_y7","v":2012},{"$f":"dms_y8","v":2013},{"$f":"dms_y9","v":2014},{"$f":"dms_y10","v":2015},{"$f":"dms_y11","v":2016},{"$f":"dms_y12","v":2017},{"$f":"dms_y13","v":2018}]
["DRAB1201","Overhead network assets less than 33kV (wires and poles)"]
["DRAB1202","Underground network assets less than 33kV (cables)"]
["DRAB1203","Distribution substations including transformers"]
["DRAB1204","Overhead network assets 33kV and above (wires and towers / poles etc) "]
["DRAB1205","Underground network assets 33kV and above(cables, ducts etc)"]
["DRAB1206","Zone substations and transformers"]
["DRAB1207","Easements "]
["DRAB1208","Meters"]
["DRAB1209","“Other” assets with long lives"]
["DRAB1210","“Other” assets with short lives"]
["DRAB13","Value of Capital Contributions or Contributed Assets (included in the above)"]
[]
[]
[null,"3.3.4 - ASSET LIVES"]
[null,null,"Network services",null,null,null,null,null,null,null,null,null,null,null,null,null,"Standard control services",null,null,null,null,null,null,null,null,null,null,null,null,null,"Alternative control services"]
[null,null,"Service Life (Years)",null,null,null,null,null,null,null,null,null,null,null,null,null,"Service Life (Years)",null,null,null,null,null,null,null,null,null,null,null,null,null,"Service Life (Years)"]
[null,null,{"$f":"dms_y1","v":"2006"},{"$f":"dms_y2","v":"2007"},{"$f":"dms_y3","v":"2008"},{"$f":"dms_y4","v":"2009"},{"$f":"dms_y5","v":2010},{"$f":"dms_y6","v":2011},{"$f":"dms_y7","v":2012},{"$f":"dms_y8","v":2013},{"$f":"dms_y9","v":2014},{"$f":"dms_y10","v":2015},{"$f":"dms_y11","v":2016},{"$f":"dms_y12","v":2017},{"$f":"dms_y13","v":2018},null,{"$f":"dms_y1","v":"2006"},{"$f":"dms_y2","v":"2007"},{"$f":"dms_y3","v":"2008"},{"$f":"dms_y4","v":"2009"},{"$f":"dms_y5","v":2010},{"$f":"dms_y6","v":2011},{"$f":"dms_y7","v":2012},{"$f":"dms_y8","v":2013},{"$f":"dms_y9","v":2014},{"$f":"dms_y10","v":2015},{"$f":"dms_y11","v":2016},{"$f":"dms_y12","v":2017},{"$f":"dms_y13","v":2018},null,{"$f":"dms_y1","v":"2006"},{"$f":"dms_y2","v":"2007"},{"$f":"dms_y3","v":"2008"},{"$f":"dms_y4","v":"2009"},{"$f":"dms_y5","v":2010},{"$f":"dms_y6","v":2011},{"$f":"dms_y7","v":2012},{"$f":"dms_y8","v":2013},{"$f":"dms_y9","v":2014},{"$f":"dms_y10","v":2015},{"$f":"dms_y11","v":2016},{"$f":"dms_y12","v":2017},{"$f":"dms_y13","v":2018}]
[null,"ESTIMATED SERVICE LIFE OF NEW ASSETS"]
["DRAB1401","Overhead network assets less than 33kV (wires and poles)"]
["DRAB1402","Underground network assets less than 33kV (cables)"]
["DRAB1403","Distribution substations including transformers"]
["DRAB1404","Overhead network assets 33kV and above (wires and towers / poles etc) "]
["DRAB1405","Underground network assets 33kV and above(cables, ducts etc)"]
["DRAB1406","Zone substations and transformers"]
["DRAB1407","Meters"]
["DRAB1408","“Other” assets with long lives"]
["DRAB1409","“Other” assets with short lives"]
[]
[null,"ESTIMATED RESIDUAL SERVICE LIFE"]
["DRAB1501","Overhead network assets less than 33kV (wires and poles)"]
["DRAB1502","Underground network assets less than 33kV (cables)"]
["DRAB1503","Distribution substations including transformers"]
["DRAB1504","Overhead network assets 33kV and above (wires and towers / poles etc) "]
["DRAB1505","Underground network assets 33kV and above (cables, ducts etc)"]
["DRAB1506","Zone substations and transformers"]
["DRAB1507","Meters"]
["DRAB1508","“Other” assets with long lives"]
["DRAB1509","“Other” assets with short lives"]

{"sheet":"NSP Amendments","index":11,"n_rows":2,"n_cols":3,"rows_kept":2,"cut":false,"hidden":false,"merged":[[0,1,0,2]]}
[null,{"$f":"CONCATENATE(dms_TradingName,\" data amendments\")","v":"Powercor Australia data amendments"}]
[null,"Amended Table","Comments"]